{"text_format":"1","workbook":"xlsx","n_sheets":3,"sheets":["Cerere de Finantare","Anexa 3","Asociati"],"not_rendered":{"charts":0,"images":1,"macros":1,"external_links":0,"defined_names":0,"comments":0,"pivot_tables":0},"unopened":[],"bounds":{"document_bytes":16777216,"sheet_cells":100000,"rows_first":2000,"rows_last":500,"rows_between":2000,"halvings":0,"cell_chars":16384,"cell_head_chars":4096},"cells_cut":0,"cells_raw":0,"read":"whole","date_system":"1900"}

{"sheet":"Cerere de Finantare","index":0,"n_rows":503,"n_cols":58,"rows_kept":503,"cut":false,"hidden":false,"merged":[[429,0,437,60],[438,0,446,60],[484,0,484,32],[484,33,484,60],[485,0,485,32],[485,33,485,60],[486,0,486,32],[486,33,486,60],[488,0,498,60],[501,1,501,36],[502,1,502,60],[487,0,487,60],[473,3,473,60],[474,3,474,60],[475,3,475,60],[476,3,476,60],[481,0,481,60],[482,0,482,60],[483,0,483,60],[475,0,475,2],[473,0,473,2],[474,0,474,2],[465,3,465,60],[466,3,466,60],[456,0,456,2],[457,0,457,2],[458,0,458,2],[459,0,459,2],[460,0,460,2],[461,0,461,2],[462,0,462,2],[463,0,463,2],[464,0,464,2],[467,3,467,60],[468,3,468,60],[469,3,469,60],[470,3,470,60],[471,3,471,60],[472,3,472,60],[461,3,461,60],[462,3,462,60],[463,3,463,60],[464,3,464,60],[471,0,471,2],[472,0,472,2],[382,0,382,60],[377,0,377,8],[377,9,377,29],[377,30,377,37],[377,38,377,47],[377,48,377,60],[378,9,378,29],[378,30,379,37],[378,38,379,47],[378,48,379,60],[378,0,379,8],[379,9,379,14],[379,15,379,19],[379,20,379,23],[379,24,379,29],[380,0,380,8],[380,9,380,29],[380,30,380,37],[380,38,380,47],[380,48,380,60],[373,0,373,8],[373,9,373,29],[373,30,373,37],[373,38,373,47],[373,48,373,60],[374,0,374,8],[374,9,374,29],[374,30,374,37],[374,38,374,47],[374,48,374,60],[375,0,375,8],[375,9,375,29],[375,30,375,37],[375,38,375,47],[375,48,375,60],[376,0,376,8],[376,9,376,29],[376,30,376,37],[376,38,376,47],[376,48,376,60],[369,0,369,8],[369,9,369,29],[369,30,369,37],[369,38,369,47],[369,48,369,60],[370,0,370,8],[370,9,370,29],[370,30,370,37],[370,38,370,47],[370,48,370,60],[371,0,371,8],[371,9,371,29],[371,30,371,37],[371,38,371,47],[371,48,371,60],[372,0,372,8],[372,9,372,29],[372,30,372,37],[372,38,372,47],[372,48,372,60],[365,30,365,37],[365,38,365,47],[365,48,365,60],[366,0,366,8],[366,9,366,29],[366,30,366,37],[366,38,366,47],[366,48,366,60],[367,0,367,8],[367,9,367,29],[367,30,367,37],[367,38,367,47],[367,48,367,60],[368,0,368,8],[368,9,368,29],[368,30,368,37],[368,38,368,47],[368,48,368,60],[365,0,365,8],[365,9,365,29],[362,0,362,8],[362,9,362,29],[362,30,362,37],[362,38,362,47],[362,48,362,60],[363,0,363,8],[363,9,363,29],[363,30,363,37],[363,38,363,47],[363,48,363,60],[364,0,364,8],[364,9,364,29],[364,30,364,37],[364,38,364,47],[364,48,364,60],[361,0,361,8],[361,9,361,29],[358,0,358,8],[358,9,358,29],[358,30,358,37],[358,38,358,47],[358,48,358,60],[359,0,359,8],[359,9,359,29],[359,30,359,37],[359,38,359,47],[359,48,359,60],[360,0,360,8],[360,9,360,29],[360,30,360,37],[360,38,360,47],[360,48,360,60],[357,9,357,29],[361,30,361,37],[361,38,361,47],[361,48,361,60],[352,9,352,29],[352,30,352,37],[352,38,352,47],[352,48,352,60],[353,0,353,8],[353,9,353,29],[353,30,353,37],[353,38,353,47],[353,48,353,60],[354,0,354,8],[354,9,354,29],[354,30,354,37],[354,38,354,47],[354,48,354,60],[351,0,351,8],[357,30,357,37],[357,38,357,47],[357,48,357,60],[343,0,343,8],[343,9,343,29],[344,0,344,8],[339,0,339,8],[339,9,339,29],[340,0,340,8],[340,9,340,29],[276,14,276,18],[274,1,274,13],[275,1,275,13],[276,1,276,13],[355,0,355,8],[355,9,355,29],[355,30,355,37],[355,38,355,47],[355,48,355,60],[350,0,350,8],[350,9,350,29],[344,9,344,29],[345,0,345,8],[345,9,345,29],[346,0,346,8],[346,9,346,29],[347,0,347,8],[348,0,348,8],[347,9,347,29],[348,9,348,29],[349,0,349,8],[349,9,349,29],[349,30,349,37],[349,38,349,47],[351,30,351,37],[334,30,334,37],[339,30,339,37],[339,38,339,47],[339,48,339,60],[340,30,340,37],[340,38,340,47],[341,0,341,8],[341,9,341,29],[342,0,342,8],[271,14,271,18],[272,1,272,13],[272,14,272,18],[273,1,273,13],[273,14,273,18],[277,1,277,13],[278,1,278,13],[279,1,279,13],[274,14,274,18],[277,14,277,18],[278,14,278,18],[279,14,279,18],[332,30,332,37],[342,9,342,29],[273,57,273,59],[273,19,273,37],[273,38,273,43],[273,44,273,52],[332,38,332,47],[332,48,332,60],[333,30,333,37],[333,38,333,47],[333,48,333,60],[7,36,8,60],[13,36,21,60],[178,3,178,16],[178,17,178,49],[176,2,176,14],[181,24,181,49],[184,4,184,15],[184,18,184,20],[265,0,265,60],[248,1,248,13],[248,20,248,32],[266,2,266,60],[267,2,267,60],[270,14,270,18],[271,1,271,13],[357,0,357,8],[185,4,185,6],[185,7,185,9],[185,10,185,15],[185,18,186,20],[128,1,128,41],[51,6,51,21],[51,26,51,41],[51,49,51,59],[53,6,53,25],[53,30,53,33],[180,3,180,10],[180,24,180,49],[181,3,181,16],[185,21,186,26],[185,28,186,35],[185,37,186,48],[346,48,346,60],[347,30,347,37],[345,30,345,37],[270,19,270,37],[271,19,271,37],[270,38,270,43],[271,38,271,43],[270,44,270,52],[270,1,270,13],[270,53,270,56],[270,57,270,59],[272,19,272,37],[89,1,93,13],[81,1,85,13],[154,7,154,9],[154,10,154,15],[246,12,246,27],[247,30,247,33],[247,36,247,45],[246,54,246,58],[246,48,246,51],[247,48,247,51],[247,54,247,58],[162,4,162,6],[162,7,162,9],[162,10,162,15],[162,18,163,20],[162,21,163,26],[162,28,163,35],[188,1,189,40],[255,29,255,59],[256,29,256,59],[291,50,291,54],[291,55,291,60],[299,55,299,60],[296,0,296,29],[465,0,465,2],[466,0,466,2],[467,0,467,2],[460,3,460,60],[340,48,340,60],[341,30,341,37],[341,38,341,47],[341,48,341,60],[334,0,334,8],[335,0,335,8],[334,9,334,29],[335,9,335,29],[336,0,336,8],[336,9,336,29],[337,0,337,8],[337,9,337,29],[338,0,338,8],[338,9,338,29],[351,9,351,29],[342,38,342,47],[342,48,342,60],[343,30,343,37],[343,38,343,47],[343,48,343,60],[344,30,344,37],[344,38,344,47],[344,48,344,60],[346,30,346,37],[272,38,272,43],[271,44,271,52],[272,44,272,52],[272,53,272,56],[272,57,272,59],[331,0,331,8],[331,9,331,29],[332,0,332,8],[333,0,333,8],[332,9,332,29],[333,9,333,29],[275,14,275,18],[284,0,284,29],[285,0,285,29],[284,30,285,60],[287,0,287,29],[292,0,292,29],[293,0,293,29],[293,30,293,34],[293,35,293,41],[293,42,293,49],[293,50,293,54],[293,55,293,60],[291,0,291,29],[286,30,286,60],[288,0,289,54],[288,55,288,60],[289,55,289,60],[290,0,290,60],[291,30,291,34],[291,35,291,41],[291,42,291,49],[162,37,163,48],[166,1,166,3],[166,4,166,10],[166,12,166,14],[166,15,166,23],[166,24,166,27],[166,28,166,37],[163,10,163,15],[184,21,184,26],[184,28,184,35],[184,37,184,48],[184,51,184,58],[258,2,258,56],[259,2,259,56],[261,2,261,27],[261,31,261,56],[262,2,262,27],[262,31,262,56],[251,1,251,23],[248,38,248,50],[249,38,249,50],[253,0,253,60],[255,2,255,27],[256,2,256,27],[249,1,249,13],[249,20,249,32],[162,51,163,58],[163,4,163,6],[163,7,163,9],[134,1,134,10],[133,12,133,21],[134,12,134,21],[142,4,142,13],[142,16,142,23],[142,26,142,34],[141,47,143,57],[142,36,142,46],[145,0,145,60],[146,1,146,32],[136,1,136,58],[137,1,137,58],[139,3,140,13],[139,14,140,24],[139,25,140,35],[139,36,140,46],[139,47,139,57],[140,47,140,57],[133,23,133,35],[134,23,134,35],[134,37,134,59],[133,37,133,59],[116,43,116,58],[118,40,118,58],[111,0,111,60],[115,43,115,58],[122,17,122,30],[122,1,122,16],[112,0,112,60],[113,1,113,18],[114,1,115,15],[114,19,114,39],[115,19,115,39],[114,43,114,58],[120,1,120,29],[120,32,120,33],[120,34,120,35],[120,36,120,37],[120,38,120,39],[120,41,120,42],[120,43,120,44],[120,45,120,46],[120,47,120,48],[120,50,120,51],[120,52,120,53],[120,54,120,55],[120,56,120,57],[124,24,124,37],[124,51,124,58],[132,11,132,32],[131,11,131,32],[130,22,130,40],[83,50,83,58],[91,27,91,37],[91,39,91,48],[91,50,91,58],[91,15,91,25],[73,1,77,13],[67,39,67,48],[59,15,59,25],[59,27,59,37],[59,39,59,48],[59,50,59,58],[75,15,75,25],[75,27,75,37],[75,39,75,48],[75,50,75,58],[67,50,67,58],[65,1,69,13],[57,1,61,13],[67,15,67,25],[67,27,67,37],[83,15,83,25],[83,27,83,37],[83,39,83,48],[99,9,99,58],[96,5,96,57],[97,5,97,57],[98,5,98,57],[99,0,99,8],[116,2,116,14],[116,19,116,39],[18,0,18,7],[15,30,15,34],[16,30,16,34],[17,30,17,34],[14,6,14,8],[15,6,15,8],[16,6,16,8],[14,9,14,11],[14,12,14,14],[15,12,15,14],[14,27,14,28],[15,27,15,28],[14,24,14,26],[15,24,15,26],[16,12,16,14],[15,9,15,11],[18,9,18,20],[15,20,15,23],[16,20,16,23],[17,20,17,23],[14,15,14,18],[15,15,15,18],[14,30,14,34],[14,20,14,23],[102,0,102,8],[103,0,103,8],[102,9,102,58],[103,9,103,58],[100,0,100,8],[0,6,0,60],[1,6,1,60],[7,0,7,34],[8,0,8,34],[10,7,10,34],[10,0,10,5],[6,36,6,60],[3,42,3,60],[12,0,12,5],[12,7,13,7],[12,9,13,9],[12,10,13,10],[12,12,13,12],[5,0,6,34],[5,36,5,60],[13,0,13,5],[12,21,13,21],[10,36,10,60],[11,36,12,60],[12,13,13,13],[12,15,13,15],[12,16,13,16],[12,17,13,17],[12,18,13,18],[12,20,13,20],[12,30,13,30],[12,31,13,31],[12,32,13,32],[12,33,13,33],[12,34,13,34],[12,22,13,22],[12,23,13,23],[12,25,13,25],[12,27,13,27],[12,28,13,28],[35,1,35,22],[28,1,28,15],[22,0,22,16],[23,0,23,60],[19,0,19,21],[20,0,20,7],[21,0,21,21],[30,1,30,16],[55,50,55,58],[49,27,49,40],[49,41,49,59],[47,2,47,19],[48,0,48,15],[49,0,49,12],[49,13,49,25],[55,1,55,13],[55,15,55,25],[55,27,55,37],[55,39,55,48],[29,1,29,59],[31,1,34,59],[36,1,45,59],[28,48,28,59],[26,10,26,40],[296,30,296,34],[296,35,296,41],[296,42,296,49],[296,50,296,54],[296,55,296,60],[297,0,297,29],[297,30,297,34],[297,35,297,41],[297,42,297,49],[297,50,297,54],[297,55,297,60],[294,0,294,29],[294,30,294,34],[294,35,294,41],[294,42,294,49],[294,50,294,54],[294,55,294,60],[295,0,295,29],[295,30,295,34],[295,35,295,41],[295,42,295,49],[295,50,295,54],[295,55,295,60],[302,0,302,29],[302,30,302,34],[302,35,302,41],[302,42,302,49],[302,50,302,54],[302,55,302,60],[292,30,292,49],[292,50,292,60],[303,0,303,29],[300,0,300,29],[300,30,300,34],[300,35,300,41],[300,42,300,49],[300,50,300,54],[300,55,300,60],[301,0,301,29],[301,30,301,34],[301,35,301,41],[301,42,301,49],[301,50,301,54],[301,55,301,60],[298,0,298,29],[298,30,298,34],[298,35,298,41],[298,42,298,49],[298,50,298,54],[298,55,298,60],[299,0,299,29],[299,30,299,34],[299,35,299,41],[299,42,299,49],[299,50,299,54],[313,0,313,29],[314,0,314,29],[315,0,315,29],[316,0,316,29],[317,0,317,29],[322,0,322,29],[304,0,304,29],[305,0,305,29],[306,0,306,29],[307,0,307,29],[308,0,308,29],[309,0,309,29],[310,0,310,29],[311,0,311,29],[312,0,312,29],[318,0,318,29],[320,0,320,29],[321,0,321,29],[307,35,307,41],[307,42,307,49],[307,50,307,54],[307,55,307,60],[308,30,308,34],[308,35,308,41],[308,42,308,49],[308,50,308,54],[308,55,308,60],[307,30,307,34],[303,30,303,34],[303,35,303,41],[303,42,303,49],[303,50,303,54],[303,55,303,60],[304,30,304,34],[304,35,304,41],[304,42,304,49],[304,50,304,54],[304,55,304,60],[305,30,305,34],[305,35,305,41],[305,42,305,49],[305,50,305,54],[305,55,305,60],[306,30,306,34],[306,35,306,41],[306,42,306,49],[306,50,306,54],[306,55,306,60],[311,35,311,41],[311,42,311,49],[311,50,311,54],[311,55,311,60],[312,30,312,34],[312,35,312,41],[312,42,312,49],[312,50,312,54],[312,55,312,60],[309,30,309,34],[309,35,309,41],[309,42,309,49],[309,50,309,54],[309,55,309,60],[310,30,310,34],[310,35,310,41],[310,42,310,49],[310,50,310,54],[310,55,310,60],[311,30,311,34],[314,30,314,34],[314,35,314,41],[314,42,314,49],[314,50,314,54],[314,55,314,60],[315,30,315,34],[315,35,315,41],[315,42,315,49],[315,50,315,54],[315,55,315,60],[313,30,313,34],[313,35,313,41],[313,42,313,49],[313,50,313,54],[313,55,313,60],[316,30,316,34],[316,35,316,41],[316,42,316,49],[316,50,316,54],[316,55,316,60],[317,30,317,34],[317,35,317,41],[317,42,317,49],[317,50,317,54],[317,55,317,60],[318,42,318,49],[318,50,318,54],[318,55,318,60],[320,50,320,54],[320,55,320,60],[478,1,478,31],[477,41,477,52],[478,41,478,50],[477,0,477,30],[149,24,149,49],[122,48,122,55],[328,55,328,60],[325,30,325,34],[325,35,325,41],[325,42,325,49],[325,50,325,54],[325,55,325,60],[326,30,326,34],[326,35,326,41],[326,42,326,49],[326,50,326,54],[326,55,326,60],[323,30,323,34],[323,35,323,41],[468,0,468,2],[469,0,469,2],[470,0,470,2],[319,50,319,54],[319,55,319,60],[448,0,448,60],[449,0,449,60],[451,0,451,60],[459,3,459,60],[457,3,457,60],[458,3,458,60],[456,3,456,60],[455,0,455,60],[450,1,450,34],[452,1,454,59],[322,30,322,34],[322,35,322,41],[322,42,322,49],[322,50,322,54],[322,55,322,60],[323,0,323,29],[324,0,324,29],[325,0,325,29],[326,0,326,29],[327,0,327,29],[320,30,320,34],[320,35,320,41],[320,42,320,49],[321,30,321,34],[321,35,321,41],[321,42,321,49],[321,50,321,54],[321,55,321,60],[329,0,329,60],[330,0,330,60],[100,9,100,58],[101,0,101,8],[101,9,101,58],[104,5,104,57],[105,2,109,58],[327,30,327,34],[327,35,327,41],[327,42,327,49],[327,50,327,54],[327,55,327,60],[323,42,323,49],[323,50,323,54],[318,30,318,34],[318,35,318,41],[319,0,319,29],[319,30,319,34],[319,35,319,41],[319,42,319,49],[148,3,148,10],[149,3,149,16],[148,24,148,49],[152,4,152,15],[153,4,153,6],[153,7,153,9],[153,10,153,15],[154,4,154,6],[126,1,126,38],[127,1,127,38],[132,34,132,37],[131,34,131,37],[132,39,132,42],[131,39,131,42],[126,41,126,58],[131,44,131,47],[132,44,132,47],[131,49,131,51],[132,49,132,51],[131,53,131,56],[132,53,132,56],[129,1,129,19],[129,22,129,39],[129,42,129,58],[130,1,130,19],[130,42,130,58],[131,1,131,9],[132,1,132,9],[133,1,133,10],[278,57,278,59],[152,28,152,35],[153,28,154,35],[156,1,156,32],[157,3,157,10],[157,24,157,49],[158,3,158,16],[158,24,158,49],[161,4,161,15],[161,18,161,20],[161,21,161,26],[161,28,161,35],[161,37,161,48],[161,51,161,58],[152,37,152,48],[153,37,154,48],[152,51,152,58],[153,51,154,58],[152,18,152,20],[152,21,152,26],[153,21,154,26],[153,18,154,20],[247,1,247,9],[246,36,246,44],[243,1,243,37],[244,1,244,19],[244,22,244,39],[244,42,244,58],[245,1,245,19],[245,22,245,39],[245,42,245,58],[246,1,246,9],[279,19,279,37],[279,38,279,43],[279,44,279,52],[279,53,279,56],[271,53,271,56],[274,38,274,43],[274,44,274,52],[274,19,274,37],[274,53,274,56],[274,57,274,59],[247,12,247,27],[246,30,246,33],[185,51,186,58],[186,4,186,6],[186,7,186,9],[186,10,186,15],[273,53,273,56],[280,3,280,52],[281,3,281,52],[282,3,282,52],[275,38,275,43],[275,44,275,52],[275,53,275,56],[275,57,275,59],[276,19,276,37],[276,38,276,43],[276,44,276,52],[276,53,276,56],[276,57,276,59],[277,19,277,37],[277,38,277,43],[277,44,277,52],[277,53,277,56],[277,57,277,59],[278,19,278,37],[278,38,278,43],[278,44,278,52],[278,53,278,56],[275,19,275,37],[331,30,331,37],[331,38,331,47],[331,48,331,60],[323,55,323,60],[324,30,324,34],[324,35,324,41],[324,42,324,49],[324,50,324,54],[324,55,324,60],[328,0,328,29],[328,30,328,34],[328,35,328,41],[328,42,328,49],[328,50,328,54],[334,38,334,47],[334,48,334,60],[348,30,348,37],[348,38,348,47],[348,48,348,60],[335,30,335,37],[335,38,335,47],[335,48,335,60],[336,30,336,37],[336,38,336,47],[336,48,336,60],[337,30,337,37],[337,38,337,47],[337,48,337,60],[338,30,338,37],[338,38,338,47],[338,48,338,60],[342,30,342,37],[345,38,345,47],[345,48,345,60],[383,0,383,8],[383,9,383,29],[383,30,383,37],[383,38,383,47],[383,48,383,60],[384,0,384,8],[384,9,384,29],[384,30,384,37],[384,38,384,47],[384,48,384,60],[385,0,385,8],[385,9,385,29],[385,30,385,37],[385,38,385,47],[385,48,385,60],[349,48,349,60],[350,30,350,37],[350,38,350,47],[350,48,350,60],[347,38,347,47],[347,48,347,60],[356,0,356,8],[356,9,356,29],[356,30,356,37],[356,38,356,47],[356,48,356,60],[351,38,351,47],[351,48,351,60],[352,0,352,8],[346,38,346,47],[386,0,386,8],[386,9,386,29],[386,30,386,37],[386,38,386,47],[386,48,386,60],[387,0,387,8],[387,9,387,29],[387,30,387,37],[387,38,387,47],[387,48,387,60],[388,0,388,8],[388,9,388,29],[388,30,388,37],[388,38,388,47],[388,48,388,60],[389,0,389,8],[389,9,389,29],[389,30,389,37],[389,38,389,47],[389,48,389,60],[390,0,390,8],[390,9,390,29],[390,30,390,37],[390,38,390,47],[390,48,390,60],[391,0,391,8],[391,9,391,29],[391,30,391,37],[391,38,391,47],[391,48,391,60],[392,0,392,8],[392,9,392,29],[392,30,392,37],[392,38,392,47],[392,48,392,60],[393,0,393,8],[393,9,393,29],[393,30,393,37],[393,38,393,47],[393,48,393,60],[402,38,402,47]],"merged_total":1090,"flags":["merged_cut"]}
[null,null,null,null,null,null,"MINISTERUL AGRICULTURII ŞI DEZVOLTĂRII RURALE"]
[null,null,null,null,null,null,"AGENŢIA PENTRU FINANŢAREA INVESTIŢIILOR RURALE"]
[null,null,null,null,null,null,null,null,null,null,null,null,null,null,null,null,null,null,null,null,null,null,null,null,null,null,null,null,null,null,null,null,null,null,null,null,null,null,null,null,null,null,"Aprilie 2017 vers. 1.0 cu depunere online"]
[null,null,null,null,null,null,null,null,null,null,null,null,null,null,null,null,null,null,null,null,null,null,null,null,null,null,null,null,null,null,null,null,null,null,null,null,null,null,null,null,null,null,"SECŢIUNE GENERALĂ"]
[]
["DATE DE ÎNREGISTRARE",null,null,null,null,null,null,null,null,null,null,null,null,null,null,null,null,null,null,null,null,null,null,null,null,null,null,null,null,null,null,null,null,null,null,null,"NUME ŞI PRENUME DIRECTOR GENERAL"]
[null,null,null,null,null,null,null,null,null,null,null,null,null,null,null,null,null,null,null,null,null,null,null,null,null,null,null,null,null,null,null,null,null,null,null,null,"ADJUNCT CRFIR"]
["Se completează de către Agenția pentru Finanțarea Investițiilor Rurale -Centrul"]
["Regional- Programul FEADR 2014-2020"]
[]
["OJFIR",null,null,null,null,null,null,null,null,null,null,null,null,null,null,null,null,null,null,null,null,null,null,null,null,null,null,null,null,null,null,null,null,null,null,null,"Semnătura Director General Adjunct CRFIR"]
[null,null,null,null,null,null,null,null,null,null,null,null,null,null,null,null,null,null,null,null,null,null,null,null,null,null,null,null,null,null,null,null,null,null,null,null,"Ştampila CRFIR"]
["Număr "]
["înregistrare"]
[]
[]
[]
[]
["Data Înregistrării"]
["Numele şi prenumele persoanei care înregistrează"]
["Semnătura:"]
["Data primirii cererii de finanţare la contractare:"]
["Se completează de către solicitant"]
["A PREZENTARE GENERALĂ"]
[]
[null,"A1 Sub-măsura   19.2 "]
[null,null,null,null,null,null,null,null,null,null,"Masura 2.2. (2B) Ferme mici si mijlocii"]
[]
[null,"A2 Denumire solicitant:"]
[]
[null,"A3 Titlu proiect:"]
[]
[]
[]
[]
[null,"A4 Descrierea succintă a proiectului:"]
[]
[]
[]
[]
[]
[]
[]
[]
[]
[]
[]
[null,null,"A5 Amplasarea proiectului:"]
[]
["Regiunea de dezvoltare:",null,null,null,null,null,null,null,null,null,null,null,null,null,null,null,null,null,null,null,null,null,null,null,null,null,null,"Judeţ/Municipiul Bucureşti:"]
[]
["Localitate",null,null,null,null,null,null,null,null,null,null,null,null,null,null,null,null,null,null,null,null,null,null,null,"Sat",null,null,null,null,null,null,null,null,null,null,null,null,null,null,null,null,null,"Cod Postal"]
[]
[null,"Strada",null,null,null,null,null,null,null,null,null,null,null,null,null,null,null,null,null,null,null,null,null,null,null,null,null,null,"Nr."]
[]
[null,"Obiectivele investiţiei",null,null,null,null,null,null,null,null,null,null,null,null,null,"Judeţ",null,null,null,null,null,null,null,null,null,null,null,"Comună",null,null,null,null,null,null,null,null,null,null,null,"Sat",null,null,null,null,null,null,null,null,null,null,"Sat"]
[]
[]
[]
[]
[]
[]
[]
[]
[]
[]
[]
[]
[]
[]
[]
[]
[]
[]
[]
[]
[]
[]
[]
[]
[]
[]
[]
[]
[]
[]
[]
[]
[]
[]
[]
[]
[]
[]
[]
[]
[null,"A6",null,null,null,"Declar pe propria răspundere că nu am accesat PNA 2014-2016"]
[null,null,null,null,null,"Declar pe proprie răspundere că nu voi accesa PNA 2017-2019 între momentul depunerii Cererii de Finanţare la PNDR 2014-2020 şi momentul acordării celei de-a doua tranşe de plată din PNDR 2014-2020;"]
[null,null,null,null,null,"Declar pe propria răspundere că am accesat PNA 2014-2016 şi am beneficiat de finanţare pentru următoarele achiziţii (pentru care nu voi solicita finanţare din PNDR 2014-2020 ):"]
["Anul accesării:",null,null,null,null,null,null,null,null," Produse Achiziţionaze prin program:"]
[]
[]
[]
[]
[null,null,null,null,null,"Declar pe propria răspundere că nu voi solicita finanţare din PNDR 2014-2020 pentru următoarele achiziţii pe care intenţionez să le decontez prin accesarea PNA 2017-2019:"]
[]
[]
[]
[]
[]
[]
["B INFORMAŢII PRIVIND SOLICITANTUL"]
["B1 Descrierea solicitantului"]
[null,"B1.1 Informaţii privind solicitantul"]
[null,"Data înființării",null,null,null,null,null,null,null,null,null,null,null,null,null,null,null,null,null,"Cod Unic de Înregistrare și/sau Codul de",null,null,null,null,null,null,null,null,null,null,null,null,null,null,null,null,null,null,null,null,null,null,null,"Statut juridic al solicitantului"]
[null,null,null,null,null,null,null,null,null,null,null,null,null,null,null,null,null,null,null,"Înregistrare Fiscală"]
[]
[]
[null,"Număr de înregistrare în registrul comerțului"]
[]
[null,"Codul CAEN al activităţii/activităţilor finanţate prin proiect"]
[]
[null,"Codul unic de înregistrare APIA",null,null,null,null,null,null,null,null,null,null,null,null,null,null,null,null,null,null,null,null,null,null,null,null,null,null,null,null,null,null,null,null,null,null,"Anul atribuirii codului"]
[]
[null,"Cod Registru Naţional al Exploataţiilor ANSVSA",null,null,null,null,null,null,null,null,null,null,null,null,null,null,null,null,null,null,null,null,null,null,null,null,null,null,null,null,null,null,null,null,null,null,null,null,null,"Anul atribuirii codului"]
[]
[null,"Cod Registru Naţional al Exploataţiilor ANSVSA pentru Asociaţie/Cooperativa "]
[null,"(obligatoriu pentru fermele zootehnice)"]
[null,"B1.2 Sediul social / Domiciliul stabil al solicitantului / Reşedinţa din România"]
[null,"Judeţ",null,null,null,null,null,null,null,null,null,null,null,null,null,null,null,null,null,null,null,null,"Localitate",null,null,null,null,null,null,null,null,null,null,null,null,null,null,null,null,null,null,null,"Sat"]
[]
[null,"Cod Poştal",null,null,null,null,null,null,null,null,null,"Strada",null,null,null,null,null,null,null,null,null,null,null,null,null,null,null,null,null,null,null,null,null,null,"Nr.",null,null,null,null,"Bloc",null,null,null,null,"Scara",null,null,null,null,"Et. ",null,null,null,"Ap."]
[]
[null,"Telefon fix",null,null,null,null,null,null,null,null,null,null,"Telefon mobil",null,null,null,null,null,null,null,null,null,null,"Fax",null,null,null,null,null,null,null,null,null,null,null,null,null,"E-mail"]
[]
[]
[null,"B1.3 Numele şi prenumele reprezentantului legal şi funcţia acestuia în cadrul organizaţiei, precum şi"]
[null,"specimenul de semnatură:"]
[]
[null,null,null,"Numele",null,null,null,null,null,null,null,null,null,null,"Prenumele",null,null,null,null,null,null,null,null,null,null,"Funcţia",null,null,null,null,null,null,null,null,null,null,"Reprezentant legal",null,null,null,null,null,null,null,null,null,null,"Specimen de"]
[null,null,null,null,null,null,null,null,null,null,null,null,null,null,null,null,null,null,null,null,null,null,null,null,null,null,null,null,null,null,null,null,null,null,null,null,null,null,null,null,null,null,null,null,null,null,null,"semnătură"]
[]
[null,null,null,null,null,null,null,null,null,null,null,null,null,null,null,null,null,null,null,null,null,null,null,null,null,null,null,null,null,null,null,null,null,null,null,null,"LEGAL"]
[]
[]
["B2 Informaţii referitoare la reprezentantul legal de proiect"]
[null,"B2.1 Date de identitate ale reprezentantului legal de proiect"]
[]
[null,null,null,"Data naşterii",null,null,null,null,null,null,null,null,null,null,null,null,null,null,null,null,null,null,null,null,"Cod numeric personal"]
[]
[]
[]
[null,null,null,null,"Act de identitate",null,null,null,null,null,null,null,null,null,null,null,null,null,"Seria",null,null,"Nr.",null,null,null,null,null,null,"Eliberat la data de",null,null,null,null,null,null,null,null,"de:",null,null,null,null,null,null,null,null,null,null,null,null,null,"Valabil până la:"]
[null,null,null,null,"B.I.",null,null,"C.I.",null,null,"Paşaport"]
[]
[]
[null," Date de identitate ale soţului / soţiei:"]
[null,null,null,"Data naşterii",null,null,null,null,null,null,null,null,null,null,null,null,null,null,null,null,null,null,null,null,"Cod numeric personal"]
[]
[]
[]
[null,null,null,null,"Act de identitate",null,null,null,null,null,null,null,null,null,null,null,null,null,"Seria",null,null,"Nr.",null,null,null,null,null,null,"Eliberat la data de",null,null,null,null,null,null,null,null,"de:",null,null,null,null,null,null,null,null,null,null,null,null,null,"Valabil până la:"]
[null,null,null,null,"B.I.",null,null,"C.I.",null,null,"Paşaport"]
[]
[]
[]
[null,null,null,null,"Asociat unic",null,null,null,null,null,null,null,null,null,null,"Asociat majoritar",null,null,null,null,null,null,null,null,null,null,null,null,"Administrator"]
[]
[]
[]
[]
[]
[]
[]
[]
[]
[null,null,"Asociaţi"]
[]
[null,null,null,"Nume si prenume asociat"]
[]
[null,null,null,"Data naşterii",null,null,null,null,null,null,null,null,null,null,null,null,null,null,null,null,null,null,null,null,"Cod numeric personal"]
[]
[]
[]
[null,null,null,null,"Act de identitate",null,null,null,null,null,null,null,null,null,null,null,null,null,"Seria",null,null,"Nr.",null,null,null,null,null,null,"Eliberat la data de",null,null,null,null,null,null,null,null,"de:",null,null,null,null,null,null,null,null,null,null,null,null,null,"Valabil până la:"]
[null,null,null,null,"B.I.",null,null,"C.I.",null,null,"Paşaport"]
[]
[]
[null,"Notă: Pentru a adăuga o noua inregistrare accesaţi foaia (sheet) corespunzătoare sau click pe butonul din dreapta"]
[]
[]
[]
[]
[]
[]
[]
[]
[]
[]
[]
[]
[]
[]
[]
[]
[]
[]
[]
[]
[]
[]
[]
[]
[]
[]
[]
[]
[]
[]
[]
[]
[]
[]
[]
[]
[]
[]
[]
[]
[]
[]
[]
[]
[]
[]
[]
[]
[]
[]
[]
[]
[]
[]
[null,"B2.2 Domiciliul stabil al reprezentantului legal de proiect"]
[null,"Judeţ",null,null,null,null,null,null,null,null,null,null,null,null,null,null,null,null,null,null,null,null,"Localitate",null,null,null,null,null,null,null,null,null,null,null,null,null,null,null,null,null,null,null,"Sat"]
[]
[null,"Cod Poştal",null,null,null,null,null,null,null,null,null,null,"Strada",null,null,null,null,null,null,null,null,null,null,null,null,null,null,null,null,null,"Nr.",null,null,null,null,null,"Bloc",null,null,null,null,null,null,null,null,null,null,null,"Scara",null,null,null,null,null,"Ap."]
[]
[null,"Telefon fix",null,null,null,null,null,null,null,null,null,null,null,null,null,null,null,null,null,null,"Telefon mobil",null,null,null,null,null,null,null,null,null,null,null,null,null,null,null,null,null,"Fax"]
[]
[null,"E-mail"]
[]
[]
["B3 Informaţii privind contul bancar pentru Proiectul F.E.A.D.R. SUBMĂSURA 2.2"]
[]
[null,null,"B3.1 Denumirea Institutiei Financiar Bancară",null,null,null,null,null,null,null,null,null,null,null,null,null,null,null,null,null,null,null,null,null,null,null,null,null,null,"Denumirea Sucursalei/Filialei/Agenției instituției Financiar Bancare"]
[]
[]
[null,null,"B3.2 Adresa Sucursalei/Filialei/Agenției instituției Financiar-Bancare"]
[]
[]
[null,null,"B3.3 Cod-ul IBAN al contului Bancar",null,null,null,null,null,null,null,null,null,null,null,null,null,null,null,null,null,null,null,null,null,null,null,null,null,null,null,null,"B3.4 Titularul contului bancar"]
[]
[]
[]
["C FINANȚĂRI NERAMBURSABILE solicitate și /sau obținute"]
[null,null,"C. Solicitantul a mai obținut finanțări nerambursabile ? Detailați cu datele solicitate in tabelul de mai jos*"]
[]
[]
[]
[null,"DENUMIRE PROGRAM FINANȚARE",null,null,null,null,null,null,null,null,null,null,null,null,"Număr proiecte",null,null,null,null,"Titlul Proiectui / Codul contractului/ Deciziei de finanțare ***",null,null,null,null,null,null,null,null,null,null,null,null,null,null,null,null,null,null,"Data accesării/ finalizării",null,null,null,null,null,"Valoarea accesării\nsprijinului\n(EUR)",null,null,null,null,null,null,null,null,"DA",null,null,null,"NU"]
[null,"Program Naţional Apicol (PNA)",null,null,null,null,null,null,null,null,null,null,null,null,null,null,null,null,null,null,null,null,null,null,null,null,null,null,null,null,null,null,null,null,null,null,null,null,null,null,null,null,null,null,null,null,null,null,null,null,null,null,null,null,0]
[null,"Programul Naţional de Sprijin al României în sectorul vitivinicol (PNS)"]
[null,"FEADR **"]
[null,"Alte programe europene**"]
[null,"Alte programe europene**"]
[null,"Alte programe europene**"]
[null,"Alte programe internaționale**"]
[null,"Alte programe internaționale**"]
[null,"Alte programe internaționale**"]
[null,null,null,"* se completează indiferent dacă solicitantul a obţinut / nu a obţinut finanţări nerambursabile"]
[null,null,null,"** se completează de către solicitant cu denumirea programului"]
[null,null,null,"*** se completează în funcţie de tipul proiectului"]
[]
["MINISTERUL AGRICULTURII ŞI DEZVOLTĂRII RURALE",null,null,null,null,null,null,null,null,null,null,null,null,null,null,null,null,null,null,null,null,null,null,null,null,null,null,null,null,null,"SECTIUNE SPECIFICA MĂSURA 2.2. (2B)"]
["AGENŢIA PENTRU FINANŢAREA INVESTIŢIILOR RURALE"]
[]
[]
["D. LISTA DOCUMENTELOR ANEXATE PROIECTELOR AFERENTE MĂSURII 2.2. (2B) ",null,null,null,null,null,null,null,null,null,null,null,null,null,null,null,null,null,null,null,null,null,null,null,null,null,null,null,null,null,null,null,null,null,null,null,null,null,null,null,null,null,null,null,null,null,null,null,null,null,null,null,null,null,null,"OPIS"]
[null,null,null,null,null,null,null,null,null,null,null,null,null,null,null,null,null,null,null,null,null,null,null,null,null,null,null,null,null,null,null,null,null,null,null,null,null,null,null,null,null,null,null,null,null,null,null,null,null,null,null,null,null,null,null,"documente"]
["A se anexa documentele în ordinea de mai jos:"]
["Lista documente",null,null,null,null,null,null,null,null,null,null,null,null,null,null,null,null,null,null,null,null,null,null,null,null,null,null,null,null,null,"Obligatoriu pentru toate proiectele",null,null,null,null,"Obligatoriu, dacă proiectul impune",null,null,null,null,null,null,"PAGINA de   la - până la",null,null,null,null,null,null,null,"Obligatoriu pentru toate proiectele",null,null,null,null,"Obligatoriu, dacă proiectul impune"]
["Documente specifice etapei",null,null,null,null,null,null,null,null,null,null,null,null,null,null,null,null,null,null,null,null,null,null,null,null,null,null,null,null,null,"DEPUNERE",null,null,null,null,null,null,null,null,null,null,null,null,null,null,null,null,null,null,null,"CONTRACTARE"]
["1. Planul de afaceri pentru dezvoltarea exploataţiei (în original)"]
["2. Copiile documentelor de proprietate/ folosinţă pentru exploataţia agricolă \n \na) Pentru terenul agricol:\n• documentul care atestă dreptul de proprietate asupra terenului agricol conform prevederilor legislaţiei în vigoare (contract de vânzare - cumpărare autentificat de notar, act de donaţie autentificat de notar, hotarâre judecatorească definitivă şi irevocabilă cu punere în posesie, certificat de moştenitor unic autentificat de notar, precum şi alte documente care demonstrează terţilor dreptul de proprietate conform prevederilor legislaţiei în vigoare autentificate la notar),"]
["şi/sau\n• tabelul centralizator cu suprafeţele luate în arendă pe categorii de folosinţă şi perioade de arendare, emis de Primărie, semnat de persoanele autorizate conform prevederilor legislaţiei în vigoare (care să conţină sumarul contractelor de arendare valabile la data depunerii Cererii de Finanţare); In cazul exploataţiilor care presupun înfiinţarea si/sau reconversia plantaţiilor pomicole, documentele trebuie sa fie valabile cel putin 15 ani începând cu anul depunerii cererii de finanţare, cu excepţia pepinierelor, culturilor de căpşun, zmeur, mur, coacăz şi agriş, unde perioada minimă este de 10 ani. "]
["şi/sau\n• contractul de concesiune valabil la data depunerii Cererii de Finanţare însoţit de adresa emisă de concedent care conţine situaţia privind respectarea clauzelor contractuale, dacă este în graficul de realizare a investiţiilor prevăzute în contract şi alte clauze; In cazul exploataţiilor care presupun înfiinţarea si/sau reconversia plantaţiilor pomicole, documentele trebuie sa fie valabile cel putin 15 ani începând cu anul depunerii cererii de finanţare, cu excepţia pepinierelor, culturilor de căpşun, zmeur, mur, coacăz şi agriş, unde perioada minimă este de 10 ani. "]
["şi/sau\n• contractul de comodat/contractul de închiriere/ documentul potrivit căruia suprafața de teren a fost dată temporar în administrare/ folosință"]
["şi/sau\n• document notarial care atestă constituirea patrimoniului de afectaţiune"]
["şi/sau\n• documentele pentru terenul ce constituie vatra stupinei: acte de proprietate conform legislaţiei în vigoare, sau contract de concesiune/ contract de arendă/ contract de închiriere/ contract de comodat valabile la data depunerii Cererii de finanţare. Suprafaţa de teren eligibilă pentru vatra stupinei este de minim 5mp/stup şi 50 mp pentru fiecare pavilion apicol."]
["b) Pentru construcţii permanente, conform prevederilor Legii nr. 50/1991, cu modificările și completările ulterioare:\n• documentul care atestă dreptul real principal asupra construcţiei: drept de proprietate, uz, uzufruct, superficie, servitute, concesiune (dobândit prin act autentic notarial de ex.: contract de vânzare-cumpărare, de schimb, de donaţie, certificat de moştenitor, act administrativ de restituire, hotărâre judecătorească)."]
["c) Pentru construcţii provizorii, conform prevederilor Legii nr. 50/1991, cu modificările și completările ulterioare:\n• documentul care atestă dreptul real principal asupra construcției: drept de proprietate, uz, uzufruct, superficie, servitute (dobândit prin act autentic notarial de ex.: contract de vânzare-cumpărare, de schimb, de donație, certificat de moștenitor, act administrativ de restituire, hotărâre judecătorească, lege)"]
[" sau\n• documentul care atestă dreptul de creanţă asupra construcţiei dobândit prin: concesiune, comodat, locaţiune. În cazul prezentării contractului de comodat/locațiune pentru construcțiile cu caracter provizoriu, conform prevederilor Legii nr. 50/1991, cu modificările și completările ulterioare, solicitantul trebuie să atașeze și acordul expres al proprietarului de drept."]
["d) Pentru animale, păsări şi familii de albine:\n• PAŞAPORTUL emis de ANZ pentru ecvideele (cabalinele) cu rasă şi origine"]
["• documentul emis de forma asociativă apicolă privind înregistrarea stupilor şi stupinelor constând în numerele plăcuţelor de identificare pentru fiecare stup şi panourile de identificare a stupinelor în conformitate cu prevederile legislaţiei în vigoare, actualizat cu cel mult 30 de zile înaintea datei depunerii Cererii de finanţare"]
["• Pentru exploataţiile mixte şi zootehnice: Copia Registrului agricol emis de Primărie actualizată cu cel mult 30 de zile înaintea datei depunerii Cererii de finanţare, din care să rezulte dreptul de folosinţă (proprietate/arendă/concesiune) al terenului, dreptul de proprietate asupra animalelor (toate categoriile de animale domestice şi sălbatice aflate în captivitate în cadrul exploataţiei), cu ştampila primăriei şi menţiunea  \"Conform cu originalul\".  "]
["şi\n• Pentru exploataţiile vegetale: Copia Registrului Agricol emis de Primărie actualizată în anul depunerii Cererii de Finanţare, din care să rezulte dreptul de folosinţă (proprietate/arendă/concesiune) al terenului, dreptul de proprietate asupra animalelor (toate categoriile de animale domestice şi sălbatice aflate în captivitate în cadrul exploataţiei), cu ştampila primăriei şi menţiunea \"Conform cu originalul\"."]
["3. Copiile situaţiilor financiare pentru anii  “n” si “n-1”, unde “n” este anul anterior anului în care solicitantul depune Cererea de Finanţare, înregistrate la Administraţia Financiară:\na)Pentru societăţi comerciale: \n• Bilanţul (cod 10);"]
["• Contul de profit şi pierderi (cod 20);"]
["• Datele informative (cod 30);"]
["• Situaţia activelor imobilizate (cod 40)."]
["ŞI/SAU \n• Declaraţia de inactivitate (pentru societăţile înfiinţate în anii \"n\" şi/sau \"n-1\", care nu au avut activitate).\n \nSocietăţile comerciale înfiinţate în anul 2017 nu au obligaţia depunerii acestor documente."]
["b)Pentru persoane fizice autorizate, întreprinderi individuale şi întreprinderi familiale:\n• Declaraţia privind veniturile realizate (Formularul 200 - cod 14.13.01.13);"]
["ŞI/SAU \n• Declaraţia privind veniturile din activităţi agricole - impunere pe normele de venit (Formularul 221 - cod 14.13.01.13/9), în cazul solicitanţilor care în anii \"n\" şi \"n-1\" sunt autorizaţi conform OUG.44/2008, cu modificările şi completările ulterioare, care au optat pentru calcularea venitului net pe bază de norme de venit.\n \nPersoanele fizice autorizate, întreprinderile individuale şi întreprinderile familiale înfiinţate în anul 2017 nu au obligaţia depunerii acestor documente."]
["4. Copia actului de identitate al reprezentantului legal de proiect (asociat unic/asociat majoritar/administrator)"]
["5. Hotarârea adunării generale a asociaţiilor(AGA) persoanei juridice, prin care se desemnează reprezentantul legal sau administratorul (Acţionar Majoritar 50%+1) care să reprezinte societatea în relaţia cu AFIR şi care exercită un control efectiv pe teren lung (de cel puţin 6 ani/8 ani în cazul sectorului pomicol) în ceea ce priveşte deciziile referitoare la gestionare, beneficii, riscuri financiare în cadrul exploataţiei respective"]
["6. Documentele care demonstrează gradul de rudenie între asociaţi / membrii familiei din cadrul microintreprinderii / întreprinderii mici (copiile actelor de identitate, alte documente relevante) "]
["7. Documentul care atestă absolvirea învăţământului minim de 8 clase"]
["8. Certificat de inregistrare eliberat de Oficiul Registrul Comertului conform legislatiei in vigoare"]
["9. Copia/ copiile documentului/ documentelor care certifică utilizarea resurselor genetice autohtone\na) În cazul soiurilor de plante de cultură autohtone:\n·   factura fiscală de achiziție a seminței certificate  "]
["·   documentul oficial de certificare a lotului de sămânță cu mențiunea \"sămânţă admisă pentru însămânţare\"/ buletinul de analiză oficial cu mențiunea \"sămânţă admisă pentru însămânţare\"/ buletinul de analiză oficial cu mențiunea \"Necesar propriu\" şi \"Interzisă comercializarea\"/ documentul de calitate şi conformitate al furnizorului/ orice alt document echivalent documentelor menţionate emis într-un stat membru al Uniunii Europene sau într-o ţară terţă care are echivalenţă conform Deciziei Consiliului 2003/17/CE/ eticheta oficială. "]
["b) În cazul speciilor autohtone de animale\n - Certificatul de origine pentru animalele deţinute de solicitant emis de către Asociaţiile/Organizaţiile Crescătorilor de Animale acreditate pentru întocmirea şi menţinerea registrului genealogic din specia prevăzută în proiect, autorizată de ANZ"]
["10. Documentul emis de ANSVSA prin care se certifică înregistrarea exploataţiei ca fiind exploataţie comercială de tip A, conform prevederilor Ordinului nr.16/2010, cu modificările şi completările ulterioare."]
["11. Alte documente justificative pe care solicitantul le consideră relevante pentru proiect (dacă este cazul)"]
[]
[]
[]
[]
[]
["E. LISTA COEFICIENŢILOR DE CALCUL AI PRODUCŢIEI STANDARD PENTRU VEGETAL / ZOOTEHNIE 8)"]
["CALCULUL COEFICIENȚILOR DE PRODUCȚIE STANDARD PENTRU VEGETAL"]
["Coduri EUROSTAT",null,null,null,null,null,null,null,null,"Denumire culturi",null,null,null,null,null,null,null,null,null,null,null,null,null,null,null,null,null,null,null,null,"Suprafaţa       (ha)",null,null,null,null,null,null,null,"SO 2013           euro/ha",null,null,null,null,null,null,null,null,null,"SO"]
[0,null,null,null,null,null,null,null,null,1,null,null,null,null,null,null,null,null,null,null,null,null,null,null,null,null,null,null,null,null,2,null,null,null,null,null,null,null,3,null,null,null,null,null,null,null,null,null,4]
["B_1_1_1",null,null,null,null,null,null,null,null,"Grâu comun (inclusiv seminţe)",null,null,null,null,null,null,null,null,null,null,null,null,null,null,null,null,null,null,null,null,null,null,null,null,null,null,null,null,614.09,null,null,null,null,null,null,null,null,null,{"$f":"AE334*AM334","v":0}]
["B_1_1_2",null,null,null,null,null,null,null,null,"Grâu dur (inclusiv seminţe)",null,null,null,null,null,null,null,null,null,null,null,null,null,null,null,null,null,null,null,null,null,null,null,null,null,null,null,null,432.81,null,null,null,null,null,null,null,null,null,0]
["B_1_1_3",null,null,null,null,null,null,null,null,"Secară (inclusiv seminţe)",null,null,null,null,null,null,null,null,null,null,null,null,null,null,null,null,null,null,null,null,null,null,null,null,null,null,null,null,354.27,null,null,null,null,null,null,null,null,null,0]
["B_1_1_4",null,null,null,null,null,null,null,null,"Orz+Orzoaica (inclusiv seminţe)",null,null,null,null,null,null,null,null,null,null,null,null,null,null,null,null,null,null,null,null,null,null,null,null,null,null,null,null,529.44000000000005,null,null,null,null,null,null,null,null,null,0]
["B_1_1_5",null,null,null,null,null,null,null,null,"Ovăz (inclusiv seminţe)",null,null,null,null,null,null,null,null,null,null,null,null,null,null,null,null,null,null,null,null,null,null,null,null,null,null,null,null,331.88,null,null,null,null,null,null,null,null,null,0]
["B_1_1_6",null,null,null,null,null,null,null,null,"Porumb boabe (inclusiv seminţe)",null,null,null,null,null,null,null,null,null,null,null,null,null,null,null,null,null,null,null,null,null,null,null,null,null,null,null,null,641.79999999999995,null,null,null,null,null,null,null,null,null,0]
["B_1_1_7",null,null,null,null,null,null,null,null,"Orez (inclusiv seminţe)",null,null,null,null,null,null,null,null,null,null,null,null,null,null,null,null,null,null,null,null,null,null,null,null,null,null,null,null,913.26,null,null,null,null,null,null,null,null,null,0]
["B_1_1_99",null,null,null,null,null,null,null,null,"Alte cereale (sorgul, triticale, meiul, hrişca, iarba-cănăraşului, altele) (inclusiv seminţe)",null,null,null,null,null,null,null,null,null,null,null,null,null,null,null,null,null,null,null,null,null,null,null,null,null,null,null,null,452.74,null,null,null,null,null,null,null,null,null,0]
["B_1_2_1",null,null,null,null,null,null,null,null,"Mazăre boabe, fasole boabe, lupin dulce (inclusiv seminţe)",null,null,null,null,null,null,null,null,null,null,null,null,null,null,null,null,null,null,null,null,null,null,null,null,null,null,null,null,533.77,null,null,null,null,null,null,null,null,null,0]
["B_1_2_2",null,null,null,null,null,null,null,null,"Linte, bob, măzăriche şi năut (inclusiv seminţe)",null,null,null,null,null,null,null,null,null,null,null,null,null,null,null,null,null,null,null,null,null,null,null,null,null,null,null,null,454.79,null,null,null,null,null,null,null,null,null,0]
["B_1_3",null,null,null,null,null,null,null,null,"Cartofi (inclusiv cartofi noi, material săditor, cartof dulce destinat consumului uman)",null,null,null,null,null,null,null,null,null,null,null,null,null,null,null,null,null,null,null,null,null,null,null,null,null,null,null,null,3167.88,null,null,null,null,null,null,null,null,null,0]
["B_1_4",null,null,null,null,null,null,null,null,"Sfeclă de zahăr (exclusiv seminţe)",null,null,null,null,null,null,null,null,null,null,null,null,null,null,null,null,null,null,null,null,null,null,null,null,null,null,null,null,1449.74,null,null,null,null,null,null,null,null,null,0]
["B_1_5",null,null,null,null,null,null,null,null,"Plante rădăcinoase pentru nutreţ (sfecla furajeră, alte plante furajere din familia brasiceelor, morcovi furajeri, batata(cartof dulce), păstârnac, ignama, manioc)(exclusiv seminţe)",null,null,null,null,null,null,null,null,null,null,null,null,null,null,null,null,null,null,null,null,null,null,null,null,null,null,null,null,1101.45,null,null,null,null,null,null,null,null,null,0]
["B_1_6_1",null,null,null,null,null,null,null,null,"Tutun",null,null,null,null,null,null,null,null,null,null,null,null,null,null,null,null,null,null,null,null,null,null,null,null,null,null,null,null,1696.83,null,null,null,null,null,null,null,null,null,{"$f":"AE347*AM347","v":0}]
["B_1_6_2",null,null,null,null,null,null,null,null,"Hamei",null,null,null,null,null,null,null,null,null,null,null,null,null,null,null,null,null,null,null,null,null,null,null,null,null,null,null,null,4105.24,null,null,null,null,null,null,null,null,null,0]
["B_1_6_4",null,null,null,null,null,null,null,null,"Rapiţă (inclusiv seminţe)",null,null,null,null,null,null,null,null,null,null,null,null,null,null,null,null,null,null,null,null,null,null,null,null,null,null,null,null,647.72,null,null,null,null,null,null,null,null,null,0]
["B_1_6_5",null,null,null,null,null,null,null,null,"Floarea soarelui (inclusiv seminţe)",null,null,null,null,null,null,null,null,null,null,null,null,null,null,null,null,null,null,null,null,null,null,null,null,null,null,null,null,564.52,null,null,null,null,null,null,null,null,null,{"$f":"AE350*AM350","v":0}]
["B_1_6_6",null,null,null,null,null,null,null,null,"Soia (inclusiv seminţe)",null,null,null,null,null,null,null,null,null,null,null,null,null,null,null,null,null,null,null,null,null,null,null,null,null,null,null,null,611,null,null,null,null,null,null,null,null,null,0]
["B_1_6_7",null,null,null,null,null,null,null,null,"In pentru ulei (inclusiv seminţe)",null,null,null,null,null,null,null,null,null,null,null,null,null,null,null,null,null,null,null,null,null,null,null,null,null,null,null,null,1563.56,null,null,null,null,null,null,null,null,null,0]
["B_1_6_8",null,null,null,null,null,null,null,null,"Alte plante pentru ulei (ricin, şofrănaş, susan, arahide, mac, muştar, alte culturi oleaginoase) (inclusiv seminţe)",null,null,null,null,null,null,null,null,null,null,null,null,null,null,null,null,null,null,null,null,null,null,null,null,null,null,null,null,374,null,null,null,null,null,null,null,null,null,0]
["B_1_6_9",null,null,null,null,null,null,null,null,"In textil (exclusiv seminţe)",null,null,null,null,null,null,null,null,null,null,null,null,null,null,null,null,null,null,null,null,null,null,null,null,null,null,null,null,307.17,null,null,null,null,null,null,null,null,null,{"$f":"AE354*AM354","v":0}]
["B_1_6_10",null,null,null,null,null,null,null,null,"Cânepă (exclusiv seminţe)",null,null,null,null,null,null,null,null,null,null,null,null,null,null,null,null,null,null,null,null,null,null,null,null,null,null,null,null,518.11,null,null,null,null,null,null,null,null,null,0]
["B_1_6_12",null,null,null,null,null,null,null,null,"Plante medicinale şi aromatice inclusiv ceaiul, cafeaua şi cicoarea pentru cafea: muşeţel, mătrăguna, menta, mac, angelica, chimen, genţiana, iasomia, lavanda, levănţica, origanul, şofranul, salvia, valeriana, gălbeneaua, etc",null,null,null,null,null,null,null,null,null,null,null,null,null,null,null,null,null,null,null,null,null,null,null,null,null,null,null,null,937.85,null,null,null,null,null,null,null,null,null,{"$f":"AE356*AM356","v":0}]
["B_1_6_99",null,null,null,null,null,null,null,null,"Alte plante industriale - cicoarea, trestia de zahăr, alte plante tehnice nemenţionate în altă parte, sorgul tehnic (pentru mături)",null,null,null,null,null,null,null,null,null,null,null,null,null,null,null,null,null,null,null,null,null,null,null,null,null,null,null,null,717.56,null,null,null,null,null,null,null,null,null,0]
["B_1_7_1_1",null,null,null,null,null,null,null,null,"Legume proaspete, pepeni şi căpşuni - în câmp:\n- varză, conopidă, broccoli, sparanghel\n- legume pt. frunze (praz, salată, spanac, etc.)\n- tomate\n- porumb dulce\n- legume cultivate pentru fructe - vinete, ardei, dovleci şi dovlecei, castraveciori\n- legume cultivate pentru rădăcină, bulbi, tuberculi (excepţie cartofi): morcovi, păstârnac, ceapă, usturoi, ridichi, napi\n- legume păstăi (fasole, mazăre cu excepţia lintei şi a năutului)\n- fructele plantelor neperene (căpşuni, pepeni galbeni, pepeni verzi, ananas)",null,null,null,null,null,null,null,null,null,null,null,null,null,null,null,null,null,null,null,null,null,null,null,null,null,null,null,null,6196.49,null,null,null,null,null,null,null,null,null,{"$f":"AE358*AM358","v":0}]
["B_1_7_1_2",null,null,null,null,null,null,null,null,"Legume proaspete, pepeni şi căpşuni - în grădină destinate comercializării:\n- varză, conopidă, broccoli, sparanghel\n- legume pt. frunze (praz, salată, spanac, etc.)\n- tomate\n- porumb dulce\n- legume cultivate pentru fructe - vinete, ardei, dovleci şi dovlecei, castraveciori\n- legume cultivate pentru rădăcină, bulbi, tuberculi (excepţie cartofi): morcovi, păstârnac, ceapă, usturoi, ridichii, napi\n- legume păstăi(fasole, mazăre cu excepţia lintei şi a năutului)\n- fructele plantelor neperene (căpşuni, pepeni galbeni, pepeni verzi, ananas)",null,null,null,null,null,null,null,null,null,null,null,null,null,null,null,null,null,null,null,null,null,null,null,null,null,null,null,null,7176.16,null,null,null,null,null,null,null,null,null,{"$f":"AE359*AM359","v":0}]
["B_1_7_2",null,null,null,null,null,null,null,null,"Legume proaspete, pepeni şi căpşuni - în sere şi solarii:\n- varză, conopidă, broccoli, sparanghel\n- legume pt. frunze (praz, salată, spanac, etc.)\n- tomate\n- porumb dulce\n- legume cultivate pentru fructe - vinete, ardei, dovleci şi dovlecei, castraveciori\n- legume cultivate pentru rădăcină, bulbi, tuberculi (excepţie cartofi): morcovi, păstârnac, ceapă, usturoi, ridichii, napi\n- legume păstăi (fasole, mazăre cu excepţia lintei şi a năutului)\n- fructele plantelor neperene (căpşuni, pepeni galbeni, pepeni verzi, ananas)",null,null,null,null,null,null,null,null,null,null,null,null,null,null,null,null,null,null,null,null,null,null,null,null,null,null,null,null,27507.66,null,null,null,null,null,null,null,null,null,{"$f":"AE360*AM360","v":0}]
["B_1_8_1",null,null,null,null,null,null,null,null,"Flori - în câmp\n- bulbi de flori, cormi şi tuberculi\n- flori tăiate şi boboci\n- plante cu flori şi plante ornamentale",null,null,null,null,null,null,null,null,null,null,null,null,null,null,null,null,null,null,null,null,null,null,null,null,null,null,null,null,25527.46,null,null,null,null,null,null,null,null,null,{"$f":"AE361*AM361","v":0}]
["B_1_8_2",null,null,null,null,null,null,null,null,"Flori - în sere şi solarii\n- bulbi de flori, cormi şi tuberculi\n- flori tăiate şi boboci\n- plante cu flori şi plante ornamentale",null,null,null,null,null,null,null,null,null,null,null,null,null,null,null,null,null,null,null,null,null,null,null,null,null,null,null,null,83743.81,null,null,null,null,null,null,null,null,null,{"$f":"AE362*AM362","v":0}]
["B_1_9_1",null,null,null,null,null,null,null,null,"Plante de nutreţ - Iarba temporară - iarba semănată pe terenuri arabile cedate producţiilor furajere erbacee pe o perioadă mai scurtă de 5 ani şi chiar sub un an",null,null,null,null,null,null,null,null,null,null,null,null,null,null,null,null,null,null,null,null,null,null,null,null,null,null,null,null,266.22000000000003,null,null,null,null,null,null,null,null,null,{"$f":"AE363*AM363","v":0}]
["B_1_9_2_1",null,null,null,null,null,null,null,null,"Plante de nutreţ - alte furaje verzi - porumb siloz",null,null,null,null,null,null,null,null,null,null,null,null,null,null,null,null,null,null,null,null,null,null,null,null,null,null,null,null,1029.19,null,null,null,null,null,null,null,null,null,{"$f":"AE364*AM364","v":0}]
["B_1_9_2_2",null,null,null,null,null,null,null,null,"Plante de nutreţ - alte furaje verzi (culturi anuale de cereale recoltate verzi, sorgul anual, anumite graminee anuale cum sunt firuţa, cruciferele, facelia dacă sunt recoltate verzi şi nu au fost menţionate în altă parte, mazariche, lupin dulce)",null,null,null,null,null,null,null,null,null,null,null,null,null,null,null,null,null,null,null,null,null,null,null,null,null,null,null,null,476.13,null,null,null,null,null,null,null,null,null,{"$f":"AE365*AM365","v":0}]
["B_1_9_2_99",null,null,null,null,null,null,null,null,"Alte plante de nutreţ (diferite specii de trifoi anual sau peren - trifoi alb, trifoi roşu, trifoi de Alexandria - diferite varietăţi de lucernă)",null,null,null,null,null,null,null,null,null,null,null,null,null,null,null,null,null,null,null,null,null,null,null,null,null,null,null,null,662.78,null,null,null,null,null,null,null,null,null,{"$f":"AE366*AM366","v":0}]
["B_1_10",null,null,null,null,null,null,null,null,"Seminţe şi seminiceri\n- semințe de graminee (altele decât cerealele de bază)\n- seminţe pentru horticultură\n- seminţe şi răsaduri pentru teren arabil cu excepţia cerealelor, a boabelor de leguminoase uscate, a cartofilor, a plantelor oleaginoase",null,null,null,null,null,null,null,null,null,null,null,null,null,null,null,null,null,null,null,null,null,null,null,null,null,null,null,null,2993.73,null,null,null,null,null,null,null,null,null,{"$f":"AE367*AM367","v":0}]
["B_11",null,null,null,null,null,null,null,null,"Alte plante (culturi de mică importanţă economică care nu pot fi încadrate în altă categorie)",null,null,null,null,null,null,null,null,null,null,null,null,null,null,null,null,null,null,null,null,null,null,null,null,null,null,null,null,592.99,null,null,null,null,null,null,null,null,null,{"$f":"AE368*AM368","v":0}]
["B_3_1",null,null,null,null,null,null,null,null,"Păşuni şi fâneţe permanente - păşuni şi fâneţe",null,null,null,null,null,null,null,null,null,null,null,null,null,null,null,null,null,null,null,null,null,null,null,null,null,null,null,null,295.04000000000002,null,null,null,null,null,null,null,null,null,{"$f":"AE369*AM369","v":0}]
["B_3_2",null,null,null,null,null,null,null,null,"Păşuni şi fâneţe permanente - pe terenuri accidentate - păşuni sărace, inclusiv lăstărişul, de obicei nefertilizate şi neîntrebuinţate – păşuni cu randament scăzut situate în locuri accidentate şi la altitudini mari, care nu sunt cosite – terenuri stâncoase, terenuri mlăştinoase, bărăganuri",null,null,null,null,null,null,null,null,null,null,null,null,null,null,null,null,null,null,null,null,null,null,null,null,null,null,null,null,92.33,null,null,null,null,null,null,null,null,null,{"$f":"AE370*AM370","v":0}]
["B_4_1_1_1",null,null,null,null,null,null,null,null,"Fructe, pomi şi arbuşti - climă temperată:\nMere\nPere\nPiersici şi nectarine\nAlte fructe: vişine, cireşe, caise, prune, gutui",null,null,null,null,null,null,null,null,null,null,null,null,null,null,null,null,null,null,null,null,null,null,null,null,null,null,null,null,2812.04,null,null,null,null,null,null,null,null,null,{"$f":"AE371*AM371","v":0}]
["B_4_1_2",null,null,null,null,null,null,null,null,"Livezi de coacăz, smochin, zmeur, muri, agrişe, cătină, afin, goji, măceşe, soc, lonicera, coarne, aronia",null,null,null,null,null,null,null,null,null,null,null,null,null,null,null,null,null,null,null,null,null,null,null,null,null,null,null,null,3958.34,null,null,null,null,null,null,null,null,null,{"$f":"AE372*AM372","v":0}]
["B_4_1_3",null,null,null,null,null,null,null,null,"Fructe, pomi și arbuști: nuci, alune, migdale, castane",null,null,null,null,null,null,null,null,null,null,null,null,null,null,null,null,null,null,null,null,null,null,null,null,null,null,null,null,1754.4,null,null,null,null,null,null,null,null,null,{"$f":"AE373*AM373","v":0}]
["B_4_4_1",null,null,null,null,null,null,null,null,"Vii - vin nobil",null,null,null,null,null,null,null,null,null,null,null,null,null,null,null,null,null,null,null,null,null,null,null,null,null,null,null,null,1981.83,null,null,null,null,null,null,null,null,null,{"$f":"AE374*AM374","v":0}]
["B_4_4_2",null,null,null,null,null,null,null,null,"Vii - alte vinuri",null,null,null,null,null,null,null,null,null,null,null,null,null,null,null,null,null,null,null,null,null,null,null,null,null,null,null,null,1889.96,null,null,null,null,null,null,null,null,null,{"$f":"AE375*AM375","v":0}]
["B_4_4_3",null,null,null,null,null,null,null,null,"Vii – struguri de masă",null,null,null,null,null,null,null,null,null,null,null,null,null,null,null,null,null,null,null,null,null,null,null,null,null,null,null,null,2170.52,null,null,null,null,null,null,null,null,null,{"$f":"AE376*AM376","v":0}]
["B_4_5",null,null,null,null,null,null,null,null,"Pepiniere",null,null,null,null,null,null,null,null,null,null,null,null,null,null,null,null,null,null,null,null,null,null,null,null,null,null,null,null,5614.25,null,null,null,null,null,null,null,null,null,{"$f":"AE377*AM377","v":0}]
["B_4_6",null,null,null,null,null,null,null,null,"Alte culturi permanente: răchita, papura, bambus, salcie, brazi de crăciun",null,null,null,null,null,null,null,null,null,null,null,null,null,null,null,null,null,null,null,null,null,null,null,null,null,null,null,null,487.35,null,null,null,null,null,null,null,null,null,{"$f":"AE378*AM378","v":0}]
["B_6_1",null,null,null,null,null,null,null,null,"Ciupercării pe 100mp (Nr. recolte pe an - 4)\n(suprafața totală cultivată = suprafața de bază*numărul de cicluri)",null,null,null,null,null,null,null,null,null,null,null,null,null,null,null,null,null,null,null,null,{"$f":"P380*Y380/100","v":0},null,null,null,null,null,null,null,4456.78,null,null,null,null,null,null,null,null,null,{"$f":"AE379*AM379/4","v":0}]
[null,null,null,null,null,null,null,null,null,"Nr. cicluri conform Plan afaceri *",null,null,null,null,null,null,null,null,null,null,"Suprafata de bază (stelaje) (mp) **"]
[null,null,null,null,null,null,null,null,null,"TOTAL VEGETAL",null,null,null,null,null,null,null,null,null,null,null,null,null,null,null,null,null,null,null,null,null,null,null,null,null,null,null,null,null,null,null,null,null,null,null,null,null,null,{"$f":"SUM(AW334:BI380)","v":0}]
[]
["* SE VA COMPLETA CU NUMĂRUL DE CICLURI DIN ACTIVITATEA EXISTENTĂ, REALIZATE ÎN CADRUL UNUI AN.\n** SE VA COMPLETA CU SUPRAFAŢA CULTURII(MP) CU CIUPERCI, ACTIVITATE EXISTENTĂ; ÎN CAZUL ÎN CARE ÎN CADRUL CIUPERCĂRIEI SE UTILIZEAZĂ UN SISTEM DE CULTURĂ ÎN STELAJE, SE VA COMPLETA SUPRAFAŢA CULTURII(MP) FORMATĂ DIN SUPRAFAŢA UNUI STELAJ(MP)xNUMĂR DE STELAJE"]
[null,null,null,null,null,null,null,null,null,"Denumire specii animale",null,null,null,null,null,null,null,null,null,null,null,null,null,null,null,null,null,null,null,null,"Număr\ncapete",null,null,null,null,null,null,null,"SO 2013          euro/cap",null,null,null,null,null,null,null,null,null,"SO"]
[0,null,null,null,null,null,null,null,null,1,null,null,null,null,null,null,null,null,null,null,null,null,null,null,null,null,null,null,null,null,2,null,null,null,null,null,null,null,3,null,null,null,null,null,null,null,null,null,4]
["C_1",null,null,null,null,null,null,null,null,"Echide",null,null,null,null,null,null,null,null,null,null,null,null,null,null,null,null,null,null,null,null,null,null,null,null,null,null,null,null,1404.31,null,null,null,null,null,null,null,null,null,{"$f":"AE386*AM386","v":0}]
["C_2_1",null,null,null,null,null,null,null,null,"Bovine sub 1 an - total",null,null,null,null,null,null,null,null,null,null,null,null,null,null,null,null,null,null,null,null,null,null,null,null,null,null,null,null,216.38,null,null,null,null,null,null,null,null,null,0]
["C_2_2",null,null,null,null,null,null,null,null,"Bovine sub 2 ani - masculi",null,null,null,null,null,null,null,null,null,null,null,null,null,null,null,null,null,null,null,null,null,null,null,null,null,null,null,null,344.4,null,null,null,null,null,null,null,null,null,0]
["C_2_3",null,null,null,null,null,null,null,null,"Bovine sub 2 ani - femele",null,null,null,null,null,null,null,null,null,null,null,null,null,null,null,null,null,null,null,null,null,null,null,null,null,null,null,null,341.49,null,null,null,null,null,null,null,null,null,0]
["C_2_4",null,null,null,null,null,null,null,null,"Bovine de 2 ani şi peste - masculi",null,null,null,null,null,null,null,null,null,null,null,null,null,null,null,null,null,null,null,null,null,null,null,null,null,null,null,null,817.88,null,null,null,null,null,null,null,null,null,0]
["C_2_5",null,null,null,null,null,null,null,null,"Bovine de 2 ani si peste - femele (juninci pentru îngrăşat, juninci pentru reproducţie)",null,null,null,null,null,null,null,null,null,null,null,null,null,null,null,null,null,null,null,null,null,null,null,null,null,null,null,null,801.38,null,null,null,null,null,null,null,null,null,0]
["C_2_6",null,null,null,null,null,null,null,null,"Vaci, bivoliţe pentru lapte",null,null,null,null,null,null,null,null,null,null,null,null,null,null,null,null,null,null,null,null,null,null,null,null,null,null,null,null,1200.46,null,null,null,null,null,null,null,null,null,0]
["C_2_99",null,null,null,null,null,null,null,null,"Bovine de 2 ani şi peste - alte vaci",null,null,null,null,null,null,null,null,null,null,null,null,null,null,null,null,null,null,null,null,null,null,null,null,null,null,null,null,515.85,null,null,null,null,null,null,null,null,null,0]
["C_3_1_1",null,null,null,null,null,null,null,null,"Oi5)\n - mioare montate\n - oi de un an sau mai mult destinate reproducerii, oile reformate care urmează să fete ",null,null,null,null,null,null,null,null,null,null,null,null,null,null,null,null,null,null,null,null,null,null,null,null,null,null,null,null,54.91,null,null,null,null,null,null,null,null,null,0]
["C_3_1_99",null,null,null,null,null,null,null,null,"Oi- alte oi5) \n-miei, berbeci, oi reformate \n-oi sterpe care urmează a fi îngrăşate în vederea sacrificării ",null,null,null,null,null,null,null,null,null,null,null,null,null,null,null,null,null,null,null,null,null,null,null,null,null,null,null,null,26.72,null,null,null,null,null,null,null,null,null,0]
["C_3_2_1",null,null,null,null,null,null,null,null,"Capre - capre montate\n- capre montate femele destinate reproducerii, capre reformate care urmează să fete 5)",null,null,null,null,null,null,null,null,null,null,null,null,null,null,null,null,null,null,null,null,null,null,null,null,null,null,null,null,112.98,null,null,null,null,null,null,null,null,null,0]
["C_3_2_99",null,null,null,null,null,null,null,null,"Capre – alte capre \n-iezi, ţapi, capre reformate destinate sacrificării 5)",null,null,null,null,null,null,null,null,null,null,null,null,null,null,null,null,null,null,null,null,null,null,null,null,null,null,null,null,39.67,null,null,null,null,null,null,null,null,null,0]
["C_4_1_1",null,null,null,null,null,null,null,null,"Porcine - tineret porcin sub 20 kg 6)",null,null,null,null,null,null,null,null,null,null,null,null,null,null,null,null,null,null,null,null,null,null,null,null,null,null,null,null,33.36,null,null,null,null,null,null,null,null,null,0]
["C_4_1_2",null,null,null,null,null,null,null,null,"Porcine - scroafe pentru reproducţie peste 50 kg 6)",null,null,null,null,null,null,null,null,null,null,null,null,null,null,null,null,null,null,null,null,null,null,null,null,null,null,null,null,262.55,null,null,null,null,null,null,null,null,null,0]
["C_4_1_99",null,null,null,null,null,null,null,null,"Porcine - alte porcine \n-porci la îngrășat, vieri, scroafe destinate sacrificării6)",null,null,null,null,null,null,null,null,null,null,null,null,null,null,null,null,null,null,null,null,null,null,null,null,null,null,null,null,388.08,null,null,null,null,null,null,null,null,null,0]
["C_5_1",null,null,null,null,null,null,null,null,"Pui pentru carne 1)",null,null,null,null,null,null,null,null,null,null,null,null,null,null,null,null,null,null,null,null,null,null,null,null,null,null,null,null,473.59,null,null,null,null,null,null,null,null,null,0]
["C_5_2",null,null,null,null,null,null,null,null,"Găini ouătoare 1)",null,null,null,null,null,null,null,null,null,null,null,null,null,null,null,null,null,null,null,null,null,null,null,null,null,null,null,null,2156,null,null,null,null,null,null,null,null,null,0]
["C_5_3_1",null,null,null,null,null,null,null,null,"Curcani şi curci 1)",null,null,null,null,null,null,null,null,null,null,null,null,null,null,null,null,null,null,null,null,null,null,null,null,null,null,null,null,4205.5600000000004,null,null,null,null,null,null,null,null,null,0]
["C_5_3_2",null,null,null,null,null,null,null,null,"Raţe 1)",null,null,null,null,null,null,null,null,null,null,null,null,null,null,null,null,null,null,null,null,null,null,null,null,null,null,null,null,2824.99,null,null,null,null,null,null,null,null,null,0]
["C_5_3_3",null,null,null,null,null,null,null,null,"Gâşte 1)",null,null,null,null,null,null,null,null,null,null,null,null,null,null,null,null,null,null,null,null,null,null,null,null,null,null,null,null,3602.66,null,null,null,null,null,null,null,null,null,0]
["C_5_3_4",null,null,null,null,null,null,null,null,"Struţi 1)",null,null,null,null,null,null,null,null,null,null,null,null,null,null,null,null,null,null,null,null,null,null,null,null,null,null,null,null,30083.5,null,null,null,null,null,null,null,null,null,0]
["C_5_3_99",null,null,null,null,null,null,null,null,"Alte păsări: bibilici, porumbei, potârnichi, fazani, prepeliţe *",null,null,null,null,null,null,null,null,null,null,null,null,null,null,null,null,null,null,null,null,null,null,null,null,null,null,null,null,900.34,null,null,null,null,null,null,null,null,null,0]
["C_6",null,null,null,null,null,null,null,null,"Iepuri (femele iepuri)",null,null,null,null,null,null,null,null,null,null,null,null,null,null,null,null,null,null,null,null,null,null,null,null,null,null,null,null,13.91,null,null,null,null,null,null,null,null,null,0]
["C_7",null,null,null,null,null,null,null,null,"Familii de albine",null,null,null,null,null,null,null,null,null,null,null,null,null,null,null,null,null,null,null,null,null,null,null,null,null,null,null,null,59.62,null,null,null,null,null,null,null,null,null,0]
[null,null,null,null,null,null,null,null,null,"TOTAL zootehnic",null,null,null,null,null,null,null,null,null,null,null,null,null,null,null,null,null,null,null,null,null,null,null,null,null,null,null,null,null,null,null,null,null,null,null,null,null,null,{"$f":"SUM(AW386:BI409)","v":0}]
[null,null,null,null,null,null,null,null,null,"TOTAL GENERAL",null,null,null,null,null,null,null,null,null,null,null,null,null,null,null,null,null,null,null,null,null,null,null,null,null,null,null,null,null,null,null,null,null,null,null,null,null,null,{"$f":"AW381+AW410","v":0}]
[]
["Valoare sprijin:*",null,null,null,null,null,null,null,null,null,{"$f":" IF(AND((AW411>=4000), (AW411<=11999)),\"15.000,00 EURO\",\"neeligibil\")","v":"neeligibil"}]
[]
["Curs EURO la data întocmirii Planului de Afaceri:",null,null,null,null,null,null,null,null,null,null,null,null,null,null,null,null,null,null,null,null,null,null,null,null,null,null,null,null,null,null,null,null,"Data întocmire Plan de Afaceri:"]
[]
["1) Valoarea SO se referă la 100 capete "]
[]
[]
[]
["DEFINIŢIA ŞI PRINCIPIILE DE CALCULARE A PRODUCŢIILOR STANDARD\nSO 2013\nExploataţia profesională este o exploataţie agricolă suficient de mare încât să ofere o activitate de bază pentru şeful exploataţiei şi un venit suficient pentru susţinerea lui şi a familiei sale.                                                                                                                                                                                                                                                                                                                                                                                \n(a) Valoarea producției standard reprezintă valoarea monetară a producției agricole brute la prețul de la poarta exploatației. Această valoare este suma dintre valoarea produsului principal (produselor principale) și cea a produsului secundar (produselor secundare). Valorile se calculează înmulțind producția per unitate cu prețul de la poarta exploatației. TVA-ul, taxele pe produse și plățile directe nu sunt incluse.\n(b) Perioada de producție Producțiile standard corespund unei perioade de producție de 12 luni (an calendaristic sau an de producție agricolă). Pentru produsele vegetale și animale în cazul cărora perioada de producție este mai mică de 12 luni sau depășește această perioadă, se calculează o producție standard corespunzătoare creșterii sau producției pe o perioadă de 12 luni.                                                                                                                                                                                                                                                                                                                                          (c) Unități\n1. Producțiile standard corespunzătoare caracteristicilor culturilor se determină pe baza suprafeței exprimate în hectare.\nCu toate acestea, pentru ciuperci, producțiile standard se determină pe baza producției brute pentru toate recoltele anuale succesive și se exprimă per 100 m2 de suprafață cultivată. În vederea utilizării lor în contextul RICA, aceste producții standard pentru ciuperci se împart la numărul de recolte anuale succesive care este comunicat Comisiei Europene.\n2. Producțiile standard corespunzătoare caracteristicilor efectivului de animale se determină pe cap de animal, cu excepția păsărilor de curte, pentru care se exprimă per 100  de capete, și a albinelor, pentru care se determină per stup.\n3. Datele de bază pentru determinarea producțiilor standard, precum și producțiile standard calculate se stabilesc în euro. Pentru statele membre care nu au aderat la uniunea economică și monetară, producțiile standard se convertesc în euro, utilizându-se cursurile de schimb medii pentru perioada de referință. Aceste cursuri de schimb medii se calculează pe baza cursurilor de schimb oficiale publicate de Comisie (Eurostat).                                                                                                                                                                                                                                                                    (d) Defalcarea producțiilor standard\nÎn funcție de caracteristicile culturii vegetale și ale efectivului de animale producțiile standard se determină pentru toate caracteristicile agricole care sunt în exploatația agricolă. Dimensiunea economică a unei exploataţii agricole reprezintă valoarea SO totală a exploataţiei, exprimată în euro, corespunzătoare sumei SO calculată pentru fiecare dintre producţiile vegetale ori animale obţinute în exploataţia respectivă într-o perioadă de un an calendaristic sau an agricol. În cadrul măsurilor de Finanţare din cadrul Programului Naţional de Dezvoltare Rurală este necesară determinarea dimensiunii economice a exploataţiilor agricole care accesează fondurile europene.\nAceste instrucţiuni sprijină experţii verificatori de la nivel central şi pe cei judeţeni în rezolvarea atribuţiilor ce le revin în procesul de verificare a dimensiunii economice, dimensiune rezultată în urma aplicării coeficienţilor standard output SO.\nAceştia se introduc ca atare şi se aplică la efectivul din teren la data aplicării cererii de Finanţare pentru măsurile de dezvoltare rurală. Pentru cazul exploataţiilor de îngrăşare a animalelor în mai multe cicluri pe an, dimensiunea economică se calculează în baza unui număr mediu.                                                                                                                             1.Culturi\nPentru toate tipurile de culturi (excepţie ciupercile) se aplică formula:\nSO 2013 = nr. ha cultura x coeficient cultura SO 2013\nIndiferent ce se obţine dintr-o cultură - făina, mălai, tărâţe, conserve, compot, dulceaţă, ţuică) - acestea sunt produse procesate fiind considerate ca venituri din alte activităţi ale exploataţiei agricole şi care nu intră în calculul dimensionării economice. Excepţie face obţinerea vinului.\nPentru exploatații care au mai multe culturi în cadrul unei categorii, cum ar fi ”Legume proaspete pepeni și căpșuni - în câmp deschis \" sau - ”Fructe din zone cu climă temperată”, coeficientul SO corespunde mediei ponderate a SO - urilor producțiilor incluse în această categorie. Este la latitudinea statelor membre să decidă care producție trebuie să fie inclusă în calcul în funcție de semnificația acesteia.\nÎn cazul în care pozițiile sunt subdivizate în sub poziții Statele Membre pot da un singur coeficient regional pentru o poziție principală; în acest caz, coeficientul pentru poziția principală se utilizează și pentru sub pozițiile aferente ex. ”Legume proaspete, pepeni şi căpşuni - în câmp, Flori, Fructe, pomi şi arbuşti - climă temperată” etc.\nTratamentul cazurilor speciale                                                                                                                                                                                                                                                                                                                                                                                                  Se stabilesc regulile următoare pentru calcularea producţiilor standard pentru anumite tipuri de caracteristici:\nPârloage (terenuri scoase temporar din circuitul agricol) fără subvenţii\nProducţia standard corespunzătoare pârloagelor fără niciun fel de subvenţii se ia în considerare la calcularea producţiei standard totale a exploataţiei numai în cazul în care există alte producţii standard pozitive pe exploataţie.\nPârloage pentru care s-au acordat subvenţii, fără uz economic, şi păşuni permanente care nu mai sunt utilizate în producţie şi care sunt eligibile pentru plata subvenţiilor\nAvând în vedere că producţia de pe terenurile în sistem de ajutor fără uz economic este limitată la plăţile directe, producţiile standard ale acestor terenuri se consideră egale cu zero.                                                                                                                                                                                                                                                                                                                                                Grădinile familiale\nAvând în vedere că produsele grădinilor familiale sunt în mod obişnuit destinate consumului propriu al exploatantului şi nu comercializării, producţiile standard ale acestora se consideră egale cu zero.                                                                                                                                                                                                                                                                                                                                                 Cultura ciupercilor\nPentru ciuperci cod B_6_1, producțiile standard se determină pe baza producției brute pentru toate recoltele anuale succesive și se exprimă per 100 m2 de suprafață cultivată.\nSe va dimensiona astfel:\nSuprafața totală a culturilor succesive = suprafaţa de bază (care poate fi supraetajată) x numărul de recolte - cicluri - complete\nPentru România s-au stabilit 4 cicluri de producţie.\nExemplu de calcul:\nPentru o suprafaţă totală de 200 mp:                                                                                                                                                                                                                                                                                                                                                               SO 2013 = 2 x 4456,78/4 cicluri = 2228,39 euro\nSeminţe şi semininceri\nCulturile de graminee (grâu, orz, orzoaică, ovăz, porumb, alte cereale) - loturi semincere se vor încadra la categoria de baza a culturii. Ca urmare la categoria B_1_10 Seminţe şi semininceri vor fi incluse următoarele:\n- Seminţe de graminee altele decât cele de la categoriile B_1_1_1, B_1_1_2, B_1_1_3, B_1_1_4, B_1_1_5, B_1_1_6, B_1_1_7, B_1_1_99\n- Seminţe pentru horticultura\n- Seminţe şi răsaduri pentru teren arabil cu excepţia cerealelor, a boabelor de leguminoase uscate, a cartofilor, a plantelor oleaginoase"]
[]
[]
[]
[]
[]
[]
[]
[]
["Furaje                                                                                                                                                                                                                                                                                                                                                                                                          În cazul în care, pe exploataţie, nu există erbivore (ecvidee, bovine, ovine şi caprine), furajele (rădăcinoase furajere şi brasicacee, plante verzi, păşuni şi fâneţe) se consideră ca fiind destinate comercializării şi fac parte din producţia culturilor de câmp.În cazul în care, pe exploataţie, există erbivore, furajele se consideră a fi destinate hrănirii acestora şi fac parte din producţia corespunzătoare erbivorelor şi furajelor.                                                                                                                                                                                                           2. Animale\nLa calcularea SO, procesarea produselor agricole nu trebuie luată în considerare chiar dacă această activitate este strâns legată de producție (lapte în unt, smântână, brânză). Prin urmare, în cazul în care într-o regiune laptele este transformat în brânză, în calcularea SO pentru vacile de lapte numai valoarea laptelui va fi luată în considerare și nu valoarea brânzei.\nPentru toate speciile de animale se aplică formula:\nSO 2013 = nr. capete specie x coeficient specie SO 2013\nmai puţin cazul păsărilor de curte la care coeficientul calculat este la 100 capete.                                                                                                                                                                                                     Exploataţia de creştere a cabalinelor\nÎn concordanţă cu codurile utilizate pentru coeficienţii producție standard (standard output, SO) se disting următoarele categorii de cabaline:\nC_1 Echide: caii (inclusiv caii de curse și de călărie), măgarii, catârii, bardoii, etc.\n- Evaluarea cabalinelor s-a efectuat ţinând cont de valoarea orelor de muncă pe care acestea le efectuează în exploataţie ca producţie principală şi de valoarea mânjilor fătaţi ca producţie secundară.\n- Cabalinele şi produsele acestora din anchetele RICA nu sunt destinate consumului uman ci deservesc munca în exploataţie.\nExemplu de calcul:                                                                                                                                   \nExploataţia deţine:\n- 4 cai\n- 2 mânji\nDimensiunea economică a exploataţiei va fi:                                                                                                                                                                                                                                                                                                                  SO 2013 = 4 x 2052,50 = 8210 euro\nExploataţia de creştere bovine\nÎn concordanţă cu codurile utilizate pentru coeficienţii producție standard ( standard output, SO) se disting următoarele categorii de bovine:\nC_2_1. Bovine sub un an, masculi și femele\nC_2_2. Bovine între unu și doi ani, masculi\nC_2_3. Bovine între unu și doi ani, femele. Cu excepția bovinelor femele care au fătat deja.\nC_2_4. Bovine masculi de doi ani și de peste doi ani\nC_2_5. Juninci de reproducție. Bovine femele de doi ani sau mai mult, care nu au fătat încă și care sunt destinate reproducerii.\nC_2_5. Juninci pentru îngrășat. Bovine femele de doi ani sau mai mult, care nu au fătat încă și care nu sunt destinate reproducerii.                                                                                                    C_2_6. Vaci de lapte. Bovine femele care au fătat (inclusiv cele de sub doi ani), care sunt ținute exclusiv sau în principal pentru producția de lapte destinat consumului uman sau obținerii de produse lactate. Sunt incluse vacile de lapte reformate.\nC_2_6. Bivolițe. Bivolițele care au fătat (inclusiv cele de sub doi ani) care sunt ținute exclusiv sau în principal pentru producția de lapte destinat consumului uman sau obținerii de produse lactate. Sunt incluse bivolițele reformate.\nC_2_99. Alte vaci:                                                                                                                                                                                                                                                                                                                                                                                                        1. Bovine femele care au fătat (inclusiv cele de sub doi ani), care sunt ținute exclusiv sau în principal pentru producția de viței și al căror lapte nu este utilizat pentru consumul uman sau obținerea de produse lactate.\n2. Vaci pentru muncă.\n3. Vaci reformate care nu sunt de lapte (îngrăşate sau nu înaintea sacrificării)\nCategoriile C_2_1:C_2_5 și C_2_99 includ și categoriile corespunzătoare de bivoli și bivolițe.\nPentru categoria C_2_1 Bovine sub un an se întâlnesc următoarele situaţii:\n· dacă în exploataţie se găsesc vaci de lapte cod C_2_6 atunci calculul dimensiunii economice se face prin însumarea producţiilor standard pentru vaci de lapte şi a producţiilor standard pentru viţeii sub 1 an al căror număr depăşeşte numărul vacilor de lapte;\n· dacă în exploatație nu se găsesc vaci de lapte atunci se iau în considerare producțiile standard corespunzătoare viţeilor sub 1 an pentru numărul care există în acel moment în exploataţie.\n· dacă în exploataţie sunt bovine femele care au fătat codul C_2_99, ţinute exclusiv sau în principal pentru producția de viței și al căror lapte nu este utilizat pentru consumul uman sau obținerea de produse lactate, calculul dimensiunii economice se face prin însumarea producţiilor standard pentru bovine femele care au fătat codul C_2_99 şi a producţiilor standard pentru viţeii sub 1 an al căror număr depăşeşte numărul bovinelor femele care au fătat cod C_2_99.                                                                                                        'Exemple de calcul:                                                                                                                                                                                                                                                                                                                                                                          1) Exploataţia deţine următoarele categorii de bovine:\n- 10 vaci de lapte care au fătat 12 viţei,\n- 2 tauri mai mari de doi ani,\n- 3 viţele mai mari de 2 ani destinate sacrificării,\n- 3 bovine femele care au fătat 3 viţei, bovine ţinute exclusiv pentru producţia de viţei\nDimensiunea economică a exploataţiei va fi:\nSO 2013 = 10 x 1200,46 + 2 x 216,38 + 2 x 817,88 + 3 x 801,38 + 3 x 515,85 = 18024,81 Euro\n2) Exploataţia deţine următoarele categorii de bovine:\n- 25 viţei bovine sub un an achiziţionaţi\n- 7 bovine femele care au fătat 9 viţei, bovine ţinute exclusiv pentru producţia de viţei\nDimensiunea economică a exploataţiei va fi:\nSO 2013 = 25 x 216,38 + 7 x 515,85 +2 x 216,38 = 9453,21 Euro                                                                                                                                                                                                        \nExploataţia de creştere ovine şi caprine                                                                                                                                                                                                                                                                                                                 În concordanţă cu codurile utilizate pentru coeficienţii producție standard ( standard output, SO) se disting următoarele categorii de ovine şi caprine:\nC_3_1_1. Oi, femele de reproducție. Oi de un an sau mai mult destinate reproducției.\nC_3_1_99. Alte ovine. Ovine de toate vârstele, cu excepția oilor.\nC_3_2_1. Caprine, femele de reproducție\nC_3_2_99. Alte caprine. Caprine, altele decât femelele de reproducție.\nProducțiile standard corespunzătoare altor ovine - miei se iau în considerare la calcularea producției standard totale a exploatației numai în cazul în care în exploatație nu există nicio femelă ovină de reproducție.                                                                                                                                                                                                                                   "]
[]
[]
[]
[]
[]
[]
[]
[]
["Producțiile standard corespunzătoare purceilor se iau în considerare la calcularea producției standard totale a exploatației numai în cazul în care în exploatație nu există nicio scroafă de reproducție.                                                                                                                                                                                                                                                                                                                                              Acest lucru se datorează faptului că purceii sub 20 kg sunt consideraţi producţia principală a scroafelor de reproducţie, valoarea acestora fiind inclusă în coeficientul standard output al scroafelor.\nExemplu de calcul:\nExploataţia deţine:\n- 12 scroafe,\n- 40 purcei sub 20 kg,\n- 35 porci pentru îngrăşat,\n- 2 vieri\nSO 2013 = 12 x 262,55 + 35 x 388,08 + 2 x 388,08 = 17509,56 Euro\nIn cazul în care exploataţia îşi desfăşoară activitatea pe mai multe cicluri de producţie (îngrăşare), calculul dimensiunii se va face astfel:                                                                                                                SO 2013 total = număr mediu porci îngrăşat x SO 2013 porci îngrăşat unde numărul mediu este exprimat ca număr cu o zecimală şi se calculează proporţional cu durata prezenţei porcilor de îngrăşat în exploataţie în timpul anului;\n- Numărul mediu = nr. total porci îngrăşat x numărul de zile (sau luni) prezenţi în exploataţie/365zile (sau 12 luni)\nExemplu de calcul: exploataţia îngraşă porci în trei cicluri prin achiziţionarea unui nr. total de 1800 porci de îngrăşat:\n- Numărul mediu = 1800 x 112 zile prezenţi în exploataţie/365 zile an = 552,3 porci îngrăşat\n- Va rezulta dimensiunea exploataţiei ca fiind:\nSO 2013 TOTAL = 552,3 x 388,08 = 214336,58 euro.                                                                                                                                                                                                                                                                      Exploataţia de creştere păsări de curte\nÎn concordanţă cu codurile utilizate pentru coeficienții producție standard ( standard output, SO) se disting următoarele categorii de păsări de curte:\nC_5_1 pui pentru carne\nC_5_2 găini ouătoare: puicuțele (găini tinere care nu au început să ouă), găinile ouătoare, găinile reformate și cocoșii de reproducție pentru găini ouătoare.\nC_5_3_1 Curcani şi curci\nC_5_3_2 Raţe\nC_5_3_3 Gâşte\nC_5_3_4 Struţi                                                                                                                                                                                                                                                                                                                                                  C_5_3_99 Alte păsări: bibilici, porumbei, potârnichi, fazani, prepeliţe\nNu se includ puişorii de o zi în nicio categorie de păsări.\nPuişorii de o zi, care nu reprezintă o categorie, ca atare, dar sunt incluşi în categoria reziduală \"Alte animale\", sunt principalul produs al găinilor de reproducție. Pentru acest lucru nu se calculează coeficient SO aferent acestei categorii.\nExploataţiile cu incubatoare pentru obţinerea puişorilor de o zi ar trebui să-şi dimensioneze unitatea prin alte metode decât cea a utilizării coeficienţilor SO, eventual cu producţia de puişori(valoare sau număr) previzionată.\n- Exploataţiile care îşi desfăşoară activitatea pe mai multe cicluri de producţie de pui de carne într-un an contabil se vor dimensiona la depunerea cererii de finanţare cu efectivul mediu de păsări (a tuturor ciclurilor) conform următoarei formule: SO 2013 total = număr mediu pui de carne x SO 2013 pui carne/100 unde numărul mediu este exprimat în cazul păsărilor ca număr întreg şi se calculează proporţional cu durata prezenţei lor în exploataţie în timpul anului\nExemplu de calcul\nExploataţia achiziţionează 1000000 pui de carne în timpul unui an în mai multe cicluri:\n- Numărul mediu = nr. total păsări x numărul de luni prezente în exploataţie/12 luni = 1000000 x 2/12 = 166667 pui de carne\n- Coeficientul standard output SO aferent categoriei C_5_1 Pui de carne = 473,59 euro/100 capete\n- Va rezulta dimensiunea exploataţiei ca fiind:\nSO 2013 TOTAL = 166667 x 473,59/100 = 789318,25 euro.\nRegulamentele care stau la baza calculului SO sunt următoarele:\n• Regulamentul (CE) nr. 1217/2009 al Consiliului privind crearea unei reţele de colectare de informaţii contabile privind veniturile şi activitatea economică a exploataţiilor agricole în Uniunea Europeană;\n• Documentul Comitetului Comunitar RICA RI/CC 1680 v.4 Martie 2015 privind Definițiile chestionarului utilizat în anchetă;                                                                                                                                                • Regulamentul de punere în aplicare (UE) 220/ 3 februarie 2015 al Comisiei de stabilire a normelor de aplicare a Regulamentului (CE) nr. 1217/2009 al Consiliului privind crearea unei rețele de colectare de informații contabile privind veniturile și activitatea economică a exploatațiilor agricole în Uniunea Europeană;\n• Documentul Comitetului Comunitar RICA RI/CC 1500 v.4 Iunie 2016 Manual de tipologie"]
[]
[]
[]
[]
[]
[]
[]
[]
[]
["F. DECLARAŢIE PE PROPRIA RĂSPUNDERE A SOLICITANTULUI"]
["Prin această declaraţie solicitantul"]
[]
["cunoscând prevederile Codului Penal privind la falsul în declaraţii, care solicită asistenţă financiară nerambursabilă prin Programul FEADR pentru proiectul măsurii 2.2. (2B), intitulat"]
[]
[]
[]
[]
[null,null,null,"1. Declar pe propria răspundere că îndeplinesc condiţiile de eligibilitate privind acordarea sprijinului prevăzut în Fişa Tehnică a Măsurii 2.2. (2B), Anexa la Ghidul Solicitantului şi mă angajez să le respect pe o perioadă egală cu perioada de implementare şi monitorizare a proiectelor începând cu anul depunerii cererii de finanţare."]
[null,null,null,"2. Declar pe propria răspundere că toate informaţiile din Cererea de Finanţare şi din documentele anexate acesteia sunt corecte şi mă angajez să respect condiţiile cerute în reglementările referitoare la prezentul program şi pe cele legate de proiectul anexat şi să furnizez periodic, la cerere, documente justificative necesare."]
[null,null,null,"3. Declar pe propria răspundere că orice modificări aduse dreptului de proprietate sau de folosinţă vor fi notificate  AFIR  în termen de trei zile calendaristice de la data încheierii documentelor respective. "]
[null,null,null,"4. Declar pe propria răspundere că mă angajez ca pe perioada de valabilitate a Deciziei de finanţare de 6/ 8 ani (pentru sectorul pomicol) să nu reduc  suprafaţa exploataţiei din anul 0 şi din anul ţinta, cuprinsă în proiect."]
[null,null,null,"5. Declar pe propria răspundere că mă angajez ca pe perioada de valabilitate a Deciziei de finanţare, perioadă egală cu perioada de implementare şi monitorizare a proiectelor începând cu anul depunerii cererii de finanţare, să nu reduc suprafaţa exploataţiei din anul 0 şi din anul ţintă, cuprinsă în proiect."]
[null,null,null,"6. Declar că nu sunt într-unul din următoarele cazuri:"]
[null,null,null,"a. Acuzat din cauza unei greseli privind conduită profesională având ca soluţie finală res judicata (împotriva căreia niciun apel nu este posibil)."]
[null,null,null,"b. Vinovat de grave deficienţe de conduită profesională dovedite prin orice mijloace pe care Agenţia le poate justifica. "]
[null,null,null,"c. Vinovat de faptul că nu am prezentat informaţiile cerute de Autoritatea Contractantă ca o condiţie de participare la contractare."]
[null,null,null,"d. Nerespectarea prevederilor contractuale prin care nu mi-am îndeplinit obligaţiile contractuale în legatură cu un alt Contract/ Decizie de Finanţare încheiat cu AFIR sau alte contracte finanţate din fonduri europene."]
[null,null,null,"e. Încalcarea de a obţine informaţii confidenţiale sau de influenţare a AFIR în timpul procesului de evaluare a proiectului şi nu voi face presiuni la adresa evaluatorului."]
[null,null,null,"7. Declar pe propria răspundere că mă angajez că toate obiectivele prevăzute în Planul de Afaceri să fie realizate cu respectarea prevederilor legislatiei naţionale şi europene în vigoare şi după caz, să obţin autorizaţiile necesare implementării proiectului până la verificarea îndeplinirii Planului de Afaceri la tranşa a doua de plată."]
[null,null,null,"8. Declar pe propria răspundere că mă angajez că voi respecta pe toată perioadă de valabilitate a Deciziei de Finanţare  condiţiile de implementare, iar dacă se constată că nu mai sunt indeplinite obiectivele din Planul de Afaceri, Autoritatea Contractanta poate proceda, după caz, fie la recuperarea integrală a ajutorului financiar nerambursabil plătit şi la încetarea de drept a Deciziei de finantare, fie la recuperarea parţială, respectiv proporţional cu obiectivele nerealizate din Planul de afaceri afectate de neregulă."]
[null,null,null,"9. Declaraţia pe propria răspundere că mă angajez că voi menţine criteriul de selecţie privind soiurile autohtone pe toată perioada de valabilitate a deciziei de finanţare, perioadă egală cu perioada de implementare şi monitorizare a proiectelor începând cu anul depunerii cererii de finanţare."]
[null,null,null,"10. Declaraţia pe propria răspundere că mă angajez că voi îndeplini criteriul de selecţie privind  soiurile autohtone până la momentul depunerii celei de a doua tranşe de sprijin, pentru dezvoltarea exploataţiei cu astfel de soiuri."]
[null,null,null,"11. Declar pe propria răspundere că mă angajez că voi menţine criteriul de selecţie privind rasele autohtone pe toată perioada de valabilitate a deciziei de finanţare, perioadă egală cu perioada de implementare şi monitorizare a proiectelor începând cu anul depunerii cererii de finanţare."]
[null,null,null,"12. Declar pe propria răspundere că mă angajez că voi îndeplini criteriul de selecţie privind rasele autohtone până la momentul depunerii celei de a doua tranşe de sprijin, pentru dezvoltarea exploataţiei cu astfel de specii.  "]
[null,null,null,"13. Declar pe propria răspundere că nu am înscrisuri care privesc sancțiuni economico-financiare în cazierul judiciar pe care mă oblig să îl depun la încheierea contractului de finanţare . Prin prezenta îmi exprim consimțământul ca AFIR să solicite instituțiilor abilitate conform legii, extrasul de pe cazierul judiciar privind situația mea.\n(Până la reglementarea posibilităţii aplicării de către experţii evaluatori AFIR a normelor metodologice aferente Legii nr. 290/2004 privind cazierul judiciar, cu modificările şi completările ulterioare, solicitantul are obligaţia depunerii documentului justificativ mai sus enunţat.)  "]
[null,null,null,"14.  Declar pe propria răspunderii că în cazul în care, exploataţia zootehnică pe care o deţin va fi selectată şi primeşte sprijin financiar nerambursabil, să o înregistrez la ANSVSA, ca exploataţie comercială de tip A, până la data semnării Deciziei de Finanţare."]
[null,null,null,"15. Sunt de acord ca AFIR să consulte şi să prelucreze, prin operaţiunile prevăzute de legislaţia în vigoare în vederea desfăşurării activităţii specifice, datele mele cu caracter personal, furnizate AFIR. "]
[]
["Semnătura reprezentant legal ",null,null,null,null,null,null,null,null,null,null,null,null,null,null,null,null,null,null,null,null,null,null,null,null,null,null,null,null,null,null,null,null,null,null,null,null,null,null,null,null," Data:"]
[]
[]
[]
["Anexa INDICATORI DE MONITORIZARE"]
["Masura 2.2. (2B) FERME MICI SI MIJLOCII"]
[]
["1. Numar de locuri de munca nou create"]
["2. Nnumar de exploatatii agricole/beneficiari sprijiniti"]
["3. Cheltuieli publice totale"]
["Indic. nr. 1 - se va completa numărul de locuri nou create (inclusiv intreprinderile individuale/persoanele fizice\nautorizate nou create)\nIndic. nr. 3 - se va completa cu valoarea sprijinului nerambursabil specific masurii"]
[]
[]
[]
[]
[]
[]
[]
[]
[]
[]
[]
[]
[]
[null,"REGULI DE COMPLETARE"]
[null,"Trebuie bifate şi anexate toate documentele (1 şi 5) de pe coloana “DEPUNERE - Obligatoriu pentru toate proiectele” din secţiunea D  - Lista documentelor anexate.\n \nSe vor completa celulele albe din tabelul privind stabilirea categoriei de ferma cu suprafetele/numărul de capete aferent culturii/speciei, iar calculul valorii producţiei standard (SO) se va efectua automat.\n \nSe va completa Declaraţia pe propria raspundere a solicitantului cu datele solicitate (denumire/nume prenume solicitant,  titlul proiectului).  \n \nPentru indicatorii de tip numeric care nu fac obiectul investitiei se va completa valoarea zero."]

{"sheet":"Anexa 3","index":1,"n_rows":0,"n_cols":0,"rows_kept":0,"cut":false,"hidden":false,"merged":[]}

{"sheet":"Asociati","index":2,"n_rows":0,"n_cols":0,"rows_kept":0,"cut":false,"hidden":false,"merged":[]}